Workbook

Sheet Vandgennemstrømning
A2: , | B2: Dette regneark er et støtteværktøj til "Kvantificering af fosfortab fra vådområder og lavvandede søer" version Januar 2023. De anvendte henvisninger til afnsit er til afsnit i denne vejledning.
B4: Indsæt kun det antal rækker der skal bruges. Man kan senere indsætte en tom række hvis det bliver nødvendigt
B6: Bestemmelse af vandstrømning gennem projektområdet (kapitel 3)
C7: Projektnavn | G7: Glenstrup Enge
C8: Data om projektområdet
C10: Projektområdets areal | G10: 39.5 | H10: ha
C11: Direkte oplandsareal til projektområde | G11: 58.1 | H11: ha | I11: Bestemmes via GIS procedure jf. afsnit 3.4 - figur 3.1
C12: Projektområde + direkte oplandsareal | G12: =oplands_areal+areal -> 97.6 | H12: ha
C13: Vandløbsoplandets areal | G13: 23.2 | H13: ha | I13: Se figur 3.1
C17: Vandløbsoplandet: | L17: Det direkte opland:
C18: Base flow index (BFI) og overfladenær strømning - Til brug ved oversvømmelse | L18: Base flow index (BFI) og overfladenær strømning fra dirékte opland
C19: BFI regnes på baggrund af karakteristika for vandløbsoplandet (jf. afsnit 3.3) | L19: BFI regnes på baggrund af karakteristika for det direkte opland (jf. afsnit 3.3)
C21: DMI-gridnr. (maks 24 grids kan indtastes) | L21: DMI-gridnr. (maks 9 grids kan indtastes)
C22: 627_55 | L22: 627_55
C26: Korrrigeret årlig nedbør i mm | G26: =IFERROR(DMI!P29,"") -> 845.29 | H26: mm/år | L26: Korrrigeret årlig nedbør | M26: =IFERROR(DMI!AC14,"") -> 845.29 | N26: mm/år
C27: Årlig potentiel fordampning i mm | G27: =IFERROR(DMI!Q29,"") -> 593.67 | H27: mm/år | L27: Årlig potentiel fordampning i mm | M27: =IFERROR(DMI!AD14,"") -> 593.67 | N27: mm/år
C28: Årsafstrømning eller nettonedbør | G28: =IFERROR(G26-G27,"") -> 251.62 | H28: mm/år | L28: Årsafstrømning/netnb | M28: =IFERROR(M26-M27,"") -> 251.62 | N28: mm/år
C29: Andel af lerjord (jL_VO) | G29: =IFERROR(DMI!R29,"") -> 5.207185909 | H29: % | L29: Andel lerjord (jL_DO) | M29: =IFERROR(DMI!AE14,"") -> 5.207185909 | N29: % kan indtastes
C30: Andel af sandjord (jS_VO) | G30: =IFERROR(DMI!S29,"") -> 92.32506415 | H30: % | L30: Befæstet areal (j9_DO) | M30: =IFERROR(DMI!AF14,"") -> 8.214394491 | N30: % kan indtastes
C31: Befæstet areal (j9_VO) | G31: =IFERROR(DMI!T29,"") -> 8.214394491 | L31: Georegion | M31: =IFERROR(DMI!AG14," ") -> 4 | N31: figur 3.4
C32: Georegion | G32: =IFERROR(DMI!U29," ") -> 4 | L32: Beregnet BFI | M32: =IF(IF(georeg_DO="","",IF(georeg_DO=1,6.246182048-4.833457007-0.000163712*nedbor_DO-0.039981285*jL_DO-0.02605607*j9_DO,IF(georeg_DO=2, 6.246182048-5.557069834-0.000163712*nedbor_DO,IF(georeg_DO=3, 6.246182048-5.433858116-0.000163712*nedbor_DO+0.01440517*jL_DO+0.005404613*j9_DO,IF(georeg_DO=4, 6.246182048-5.454599082-0.000163712*nedbor_DO-0.061801222*jL_DO+0.049981836*j9_DO,IF(georeg_DO=5, 6.246182048-5.337548982-0.000163712*nedbor_DO,IF(georeg_DO=6, 6.246182048-5.098125886-0.000163712*nedbor_DO-0.040959663*jL_DO+0.00211319*j9_DO,IF(georeg_DO=7, 6.246182048-5.332249757-0.000163712*nedbor_DO-0.020545044*jL_DO+0.00057544*j9_DO,IF(georeg_DO=8, 6.246182048-5.373048232-0.000163712*nedbor_DO-0.016805885*jL_DO+0.0062911*j9_DO,IF(georeg_DO=9, 6.246182048-0.000163712*nedbor_DO-0.445830539*jL_DO,1))))))))))<0.05,0.05,IF(IF(georeg_DO="","",IF(georeg_DO=1,6.246182048-4.833457007-0.000163712*nedbor_DO-0.039981285*jL_DO-0.02605607*j9_DO,IF(georeg_DO=2, 6.246182048-5.557069834-0.000163712*nedbor_DO,IF(georeg_DO=3, 6.246182048-5.433858116-0.000163712*nedbor_DO+0.01440517*jL_DO+0.005404613*j9_DO,IF(georeg_DO=4, 6.246182048-5.454599082-0.000163712*nedbor_DO-0.061801222*jL_DO+0.049981836*j9_DO,IF(georeg_DO=5, 6.246182048-5.337548982-0.000163712*nedbor_DO,IF(georeg_DO=6, 6.246182048-5.098125886-0.000163712*nedbor_DO-0.040959663*jL_DO+0.00211319*j9_DO,IF(georeg_DO=7, 6.246182048-5.332249757-0.000163712*nedbor_DO-0.020545044*jL_DO+0.00057544*j9_DO,IF(georeg_DO=8, 6.246182048-5.373048232-0.000163712*nedbor_DO-0.016805885*jL_DO+0.0062911*j9_DO,IF(georeg_DO=9, 6.246182048-0.000163712*nedbor_DO-0.445830539*jL_DO,0))))))))))>0.95,0.95,IF(georeg_DO="","",IF(georeg_DO=1,6.246182048-4.833457007-0.000163712*nedbor_DO-0.039981285*jL_DO-0.02605607*j9_DO,IF(georeg_DO=2, 6.246182048-5.557069834-0.000163712*nedbor_DO,IF(georeg_DO=3, 6.246182048-5.433858116-0.000163712*nedbor_DO+0.01440517*jL_DO+0.005404613*j9_DO,IF(georeg_DO=4, 6.246182048-5.454599082-0.000163712*nedbor_DO-0.061801222*jL_DO+0.049981836*j9_DO,IF(georeg_DO=5, 6.246182048-5.337548982-0.000163712*nedbor_DO,IF(georeg_DO=6, 6.246182048-5.098125886-0.000163712*nedbor_DO-0.040959663*jL_DO+0.00211319*j9_DO,IF(georeg_DO=7, 6.246182048-5.332249757-0.000163712*nedbor_DO-0.020545044*jL_DO+0.00057544*j9_DO,IF(georeg_DO=8, 6.246182048-5.373048232-0.000163712*nedbor_DO-0.016805885*jL_DO+0.0062911*j9_DO,IF(georeg_DO=9, 6.246182048-0.000163712*nedbor_DO-0.445830539*jL_DO,"")))))))))))) -> 0.7419589155 | N32: Bestemt jf. afsnit 3.3
C33: Beregnet BFI | G33: =IF(IF(georeg_VO="","",IF(georeg_VO=1,6.246182048-4.833457007-0.000163712*nedbor_VO-0.039981285*jL_VO-0.02605607*j9_VO,IF(georeg_VO=2, 6.246182048-5.557069834-0.000163712*nedbor_VO,IF(georeg_VO=3, 6.246182048-5.433858116-0.000163712*nedbor_VO+0.01440517*jL_VO+0.005404613*j9_VO,IF(georeg_VO=4, 6.246182048-5.454599082-0.000163712*nedbor_VO-0.061801222*jL_VO+0.049981836*j9_VO,IF(georeg_VO=5, 6.246182048-5.337548982-0.000163712*nedbor_VO,IF(georeg_VO=6, 6.246182048-5.098125886-0.000163712*nedbor_VO-0.040959663*jL_VO+0.00211319*j9_VO,IF(georeg_VO=7, 6.246182048-5.332249757-0.000163712*nedbor_VO-0.020545044*jL_VO+0.00057544*j9_VO,IF(georeg_VO=8, 6.246182048-5.373048232-0.000163712*nedbor_VO-0.016805885*jL_VO+0.0062911*j9_VO,IF(georeg_VO=9, 6.246182048-0.000163712*nedbor_VO-0.445830539*jL_VO,1))))))))))<0.05,0.05,IF(IF(georeg_VO="","",IF(georeg_VO=1,6.246182048-4.833457007-0.000163712*nedbor_VO-0.039981285*jL_VO-0.02605607*j9_VO,IF(georeg_VO=2, 6.246182048-5.557069834-0.000163712*nedbor_VO,IF(georeg_VO=3, 6.246182048-5.433858116-0.000163712*nedbor_VO+0.01440517*jL_VO+0.005404613*j9_VO,IF(georeg_VO=4, 6.246182048-5.454599082-0.000163712*nedbor_VO-0.061801222*jL_VO+0.049981836*j9_VO,IF(georeg_VO=5, 6.246182048-5.337548982-0.000163712*nedbor_VO,IF(georeg_VO=6, 6.246182048-5.098125886-0.000163712*nedbor_VO-0.040959663*jL_VO+0.00211319*j9_VO,IF(georeg_VO=7, 6.246182048-5.332249757-0.000163712*nedbor_VO-0.020545044*jL_VO+0.00057544*j9_VO,IF(georeg_VO=8, 6.246182048-5.373048232-0.000163712*nedbor_VO-0.016805885*jL_VO+0.0062911*j9_VO,IF(georeg_VO=9, 6.246182048-0.000163712*nedbor_VO-0.445830539*jL_VO,0))))))))))>0.95,0.95,IF(georeg_VO="","",IF(georeg_VO=1,6.246182048-4.833457007-0.000163712*nedbor_VO-0.039981285*jL_VO-0.02605607*j9_VO,IF(georeg_VO=2, 6.246182048-5.557069834-0.000163712*nedbor_VO,IF(georeg_VO=3, 6.246182048-5.433858116-0.000163712*nedbor_VO+0.01440517*jL_VO+0.005404613*j9_VO,IF(georeg_VO=4, 6.246182048-5.454599082-0.000163712*nedbor_VO-0.061801222*jL_VO+0.049981836*j9_VO,IF(georeg_VO=5, 6.246182048-5.337548982-0.000163712*nedbor_VO,IF(georeg_VO=6, 6.246182048-5.098125886-0.000163712*nedbor_VO-0.040959663*jL_VO+0.00211319*j9_VO,IF(georeg_VO=7, 6.246182048-5.332249757-0.000163712*nedbor_VO-0.020545044*jL_VO+0.00057544*j9_VO,IF(georeg_VO=8, 6.246182048-5.373048232-0.000163712*nedbor_VO-0.016805885*jL_VO+0.0062911*j9_VO,IF(georeg_VO=9, 6.246182048-0.000163712*nedbor_VO-0.445830539*jL_VO,"")))))))))))) -> 0.7419589155 | S33: Fosforbalance for projektområdet
C34: Qflom (1 - BFI) x årsafstrømning | G34: =IFERROR(IF(G33="","",(1-BFI)*(G28)),"") -> 64.92829769 | L34: QOF overfladenær | M34: =IFERROR(IF(M32="","",(1-M32)*(netto_nedbor_DO/1000)*(samlet_oplands_areal*10000)),"") -> 63370.01855 | N34: m3 år-1
L35: strømning | P35: Simplificeret figur 3.4
C36: Bestemmelse af vandgennemstrømning (kapitel 3) | P36: (georegion 9, Bornholm, ikke vist) | T36: A: Fosforfrigivelse fra projektområder
C37: Vandgennemstrømningen bestemmes for hvert prøvefelt. Beregningerne følger beskrivelsen i kapitel 3 | T37: Frigivelsen beregnes ud fra proceduren beskrevet i kapitel 6 i vejledning. | AG37: Biomassehøst | AH37: Biomassehøst | AK37: Sødannelse
E38: Fremtidige forhold | G38: Fremtidige forhold | J38: (gælder også grundvandsdybde) | L38: Nuværende forhold | M38: Nuværende forhold | N38: Nuværende forhold
G39: Anvendes kun ved delvist vådt | L39: Tekstur og permeabilitet bestemmes vha. tabel 2.1
C40: ID for prøvefelt | D40: Areal af prøvefelt (ha) | E40: Type af område | G40: Prøvefeltes placering over vandløbets sommer-middelvandstand (jf. afsnit 3.2) | J40: QOF,areal (afsnit 3.2) (mm år-1) | K40: Grundsvandsdybde (m) | L40: Tekstur | N40: Permeabilitet | O40: Drænings-intensitet (jf. afsnit 3.6) | P40: Drænings-faktor | Q40: Faktor | R40: Gennemstrømning (afsnit 3.2) (Qfelt;mm år-1) | T40: ID for prøvefelt | U40: Vægt af ovntørret prøve (kg) | X40: Jordkernes længde (m) | Y40: Jordkernes radius (m) | AA40: Volumenvægt (ligning 6.3) (kg m-3) | AB40: PBD (0-30 cm) (mg P kg tør jord-1) | AC40: FeBD (0-30 cm) (mg Fe kg tør jord-1) | AD40: FeBD:PBD (ligning 6.2) molforhold | AE40: PBD pulje (kg P ha-1) | AF40: PBD total (kg P) | AG40: PBD total efter biomassehøst (kg P) | AH40: FeBD:PBD molforhold efter evt. biomassehøst | AI40: Frigivelses rate (kg P ha-1 mm-1) | AJ40: Fosforfrigivelse (kg P år-1) | AK40: Fosforfrigivelse fra ny sø (kg P år-1)
C41: 1 | D41: 0.92 | E41: Delvist vådt | G41: >50 | J41: =IF(E41="","",IF(E41="Permanent vådt",Qovf/(areal*10000)*1000,IF(AND(E41="Delvist vådt",G41="<50"),Qovf/(areal*10000)*1000,IF(AND(E41="Delvist vådt",G41=">50"),(Qovf/(areal*10000))*1000*4/12,IF(E41="Tørt",0,""))))) -> 53.4768089 | L41: Mellemkornet sand med indslag af moderat omsat tørv | N41: 0.5 | O41: Moderat (<25%) | P41: =IF(O41="","",IF(O41="Intensiv (>25%)",1,IF(O41="Moderat (<25%)",0.5,0))) -> 0.5 | Q41: =IF(O41="","",IF(N41+P41>1,1,N41+P41)) -> 1 | R41: =IF(P41="","",IF(J41=0,0,IF((J41*Q41)>netto_nedbor_DO,J41*Q41,netto_nedbor_DO))) -> 251.62 | T41: =C41 -> 1 | U41: 0.4604659396 | V41: 0.4604659396 | W41: 0.4604659396 | X41: 0.28 | Y41: 0.0234 | AA41: =IF(Y41="","",U41/((PI()*Y41^2*X41))) -> 956.0000001 | AB41: 60 | AC41: 1100 | AD41: =IF(AC41="","",((AC41/1000)/Fe)/((AB41/1000)/P)) -> 10.1682365 | AE41: =IF(AB41="","",AA41*10000*0.3*AB41/1000^2) -> 172.08 | AF41: =IF(AE41="","",IF(E41="Tørt",0,AE41*D41)) -> 158.3136 | AG41: =IF(AF41-_xlfn.IFNA(VLOOKUP(T41,Biomassehøst!B$6:$D$206,3,FALSE),0)<0,0,AF41-_xlfn.IFNA(VLOOKUP(T41,Biomassehøst!$B$6:$D$206,3,FALSE),0)) -> 158.3136 | AH41: =IF(AC41="","",IFERROR((AC41/Fe)/(AG41/D41/AA41/0.3/10000*1000^2/P),"")) -> 10.1682365 | AI41: =IF(E41="Tørt",0,IF(AH41="","",(0.0504*(AH41^-0.958)))) -> 0.005463729809 | AJ41: =IF(AI41="","",AI41*R41*(D41-_xlfn.IFNA(VLOOKUP(T41,Søer!$B$9:$C$208,2,FALSE),0))) -> 1.264800999 | AK41: =IFERROR(161.6 * Søer!$D$3^(-0.961)*VLOOKUP(T41,Søer!$B$9:$D$208,3,FALSE)^(-1.154)*VLOOKUP(T41,Søer!$B$9:$D$208,2,FALSE),0) -> 0
C42: 2 | D42: 1.02 | E42: Delvist vådt | G42: <50 | J42: =IF(E42="","",IF(E42="Permanent vådt",Qovf/(areal*10000)*1000,IF(AND(E42="Delvist vådt",G42="<50"),Qovf/(areal*10000)*1000,IF(AND(E42="Delvist vådt",G42=">50"),(Qovf/(areal*10000))*1000*4/12,IF(E42="Tørt",0,""))))) -> 160.4304267 | L42: Modreat omsat tørv med indslag af mellemkornet sand | N42: 0.5 | O42: Moderat (<25%) | P42: 0.5 | Q42: 1 | R42: 251.62 | T42: 2 | U42: 0.5587243618 | V42: 0.5587243618 | W42: 0.5587243618 | X42: 0.28 | Y42: 0.0234 | AA42: 1160 | AB42: 60 | AC42: 1400 | AD42: 12.94139191 | AE42: 208.8 | AF42: =IF(AE42="","",IF(E42="Tørt",0,AE42*D42)) -> 212.976 | AG42: =IF(AF42-_xlfn.IFNA(VLOOKUP(T42,Biomassehøst!$B$7:$D$207,3,FALSE),0)<0,0,AF42-_xlfn.IFNA(VLOOKUP(T42,Biomassehøst!$B$7:$D$207,3,FALSE),0)) -> 212.976 | AH42: 12.94139191 | AI42: =IF(E42="Tørt",0,IF(AH42="","",(0.0504*(AH42^-0.958)))) -> 0.004336633784 | AJ42: =IF(AI42="","",AI42*R42*(D42-_xlfn.IFNA(VLOOKUP(T42,Søer!$B$9:$C$208,2,FALSE),0))) -> 1.113007468 | AK42: =IFERROR(161.6 * Søer!$D$3^(-0.961)*VLOOKUP(T42,Søer!$B$9:$D$208,3,FALSE)^(-1.154)*VLOOKUP(T42,Søer!$B$9:$D$208,2,FALSE),0) -> 0
C43: 3 | D43: 1.23 | E43: Delvist vådt | G43: >50 | J43: =IF(E43="","",IF(E43="Permanent vådt",Qovf/(areal*10000)*1000,IF(AND(E43="Delvist vådt",G43="<50"),Qovf/(areal*10000)*1000,IF(AND(E43="Delvist vådt",G43=">50"),(Qovf/(areal*10000))*1000*4/12,IF(E43="Tørt",0,""))))) -> 53.4768089 | L43: Mellemkornet sand med indslag af moderat omsat tørv | N43: 0.5 | O43: Moderat (<25%) | P43: 0.5 | Q43: 1 | R43: 251.62 | T43: 3 | U43: 0.6213400231 | V43: 0.6213400231 | W43: 0.6213400231 | X43: 0.28 | Y43: 0.0234 | AA43: 1290 | AB43: 120 | AC43: 1700 | AD43: 7.857273658 | AE43: 464.4000001 | AF43: =IF(AE43="","",IF(E43="Tørt",0,AE43*D43)) -> 571.2120001 | AG43: =IF(AF43-_xlfn.IFNA(VLOOKUP(T43,Biomassehøst!$B$7:$D$207,3,FALSE),0)<0,0,AF43-_xlfn.IFNA(VLOOKUP(T43,Biomassehøst!$B$7:$D$207,3,FALSE),0)) -> 571.2120001 | AH43: 7.857273658 | AI43: =IF(E43="Tørt",0,IF(AH43="","",(0.0504*(AH43^-0.958)))) -> 0.006994554784 | AJ43: =IF(AI43="","",AI43*R43*(D43-_xlfn.IFNA(VLOOKUP(T43,Søer!$B$9:$C$208,2,FALSE),0))) -> 2.164762946 | AK43: =IFERROR(161.6 * Søer!$D$3^(-0.961)*VLOOKUP(T43,Søer!$B$9:$D$208,3,FALSE)^(-1.154)*VLOOKUP(T43,Søer!$B$9:$D$208,2,FALSE),0) -> 0
C44: 4 | D44: 1.4 | E44: Delvist vådt | G44: >50 | J44: =IF(E44="","",IF(E44="Permanent vådt",Qovf/(areal*10000)*1000,IF(AND(E44="Delvist vådt",G44="<50"),Qovf/(areal*10000)*1000,IF(AND(E44="Delvist vådt",G44=">50"),(Qovf/(areal*10000))*1000*4/12,IF(E44="Tørt",0,""))))) -> 53.4768089 | L44: Modreat omsat tørv med indslag af mellemkornet sand | N44: 0.5 | O44: Moderat (<25%) | P44: 0.5 | Q44: 1 | R44: 251.62 | T44: 4 | U44: 0.5731741298 | V44: 0.5731741298 | W44: 0.5731741298 | X44: 0.28 | Y44: 0.0234 | AA44: 1190 | AB44: 98 | AC44: 1800 | AD44: 10.1871015 | AE44: 349.86 | AF44: =IF(AE44="","",IF(E44="Tørt",0,AE44*D44)) -> 489.8040001 | AG44: =IF(AF44-_xlfn.IFNA(VLOOKUP(T44,Biomassehøst!$B$7:$D$207,3,FALSE),0)<0,0,AF44-_xlfn.IFNA(VLOOKUP(T44,Biomassehøst!$B$7:$D$207,3,FALSE),0)) -> 489.8040001 | AH44: 10.1871015 | AI44: =IF(E44="Tørt",0,IF(AH44="","",(0.0504*(AH44^-0.958)))) -> 0.00545403637 | AJ44: =IF(AI44="","",AI44*R44*(D44-_xlfn.IFNA(VLOOKUP(T44,Søer!$B$9:$C$208,2,FALSE),0))) -> 1.921282484 | AK44: =IFERROR(161.6 * Søer!$D$3^(-0.961)*VLOOKUP(T44,Søer!$B$9:$D$208,3,FALSE)^(-1.154)*VLOOKUP(T44,Søer!$B$9:$D$208,2,FALSE),0) -> 0
C45: 5 | D45: 0.9 | E45: Delvist vådt | G45: >50 | J45: =IF(E45="","",IF(E45="Permanent vådt",Qovf/(areal*10000)*1000,IF(AND(E45="Delvist vådt",G45="<50"),Qovf/(areal*10000)*1000,IF(AND(E45="Delvist vådt",G45=">50"),(Qovf/(areal*10000))*1000*4/12,IF(E45="Tørt",0,""))))) -> 53.4768089 | L45: Modreat omsat tørv med indslag af mellemkornet sand | N45: 0.5 | O45: Moderat (<25%) | P45: 0.5 | Q45: 1 | R45: 251.62 | T45: 5 | U45: 0.4156716588 | V45: 0.4156716588 | W45: 0.4156716588 | X45: 0.28 | Y45: 0.0234 | AA45: 863.0000001 | AB45: 160 | AC45: 2000 | AD45: 6.932888521 | AE45: 414.2400001 | AF45: =IF(AE45="","",IF(E45="Tørt",0,AE45*D45)) -> 372.816 | AG45: =IF(AF45-_xlfn.IFNA(VLOOKUP(T45,Biomassehøst!$B$7:$D$207,3,FALSE),0)<0,0,AF45-_xlfn.IFNA(VLOOKUP(T45,Biomassehøst!$B$7:$D$207,3,FALSE),0)) -> 372.816 | AH45: 6.932888521 | AI45: =IF(E45="Tørt",0,IF(AH45="","",(0.0504*(AH45^-0.958)))) -> 0.007885599511 | AJ45: =IF(AI45="","",AI45*R45*(D45-_xlfn.IFNA(VLOOKUP(T45,Søer!$B$9:$C$208,2,FALSE),0))) -> 1.785757094 | AK45: =IFERROR(161.6 * Søer!$D$3^(-0.961)*VLOOKUP(T45,Søer!$B$9:$D$208,3,FALSE)^(-1.154)*VLOOKUP(T45,Søer!$B$9:$D$208,2,FALSE),0) -> 0
C46: 6 | D46: 0.54 | E46: Delvist vådt | G46: >50 | J46: 53.4768089 | L46: Modreat omsat tørv | N46: 0.5 | O46: Moderat (<25%) | P46: 0.5 | Q46: 1 | R46: 251.62 | T46: 6 | U46: 0.3304180278 | V46: 0.3304180278 | W46: 0.3304180278 | X46: 0.28 | Y46: 0.0234 | AA46: 686.0000001 | AB46: 28 | AC46: 2900 | AD46: 57.44393346 | AE46: 57.62400001 | AF46: 31.11696 | AG46: =IF(AF46-_xlfn.IFNA(VLOOKUP(T46,Biomassehøst!$B$7:$D$207,3,FALSE),0)<0,0,AF46-_xlfn.IFNA(VLOOKUP(T46,Biomassehøst!$B$7:$D$207,3,FALSE),0)) -> 31.11696 | AH46: 57.44393346 | AI46: 0.001040098862 | AJ46: =IF(AI46="","",AI46*R46*(D46-_xlfn.IFNA(VLOOKUP(T46,Søer!$B$9:$C$208,2,FALSE),0))) -> 0.1413232248 | AK46: =IFERROR(161.6 * Søer!$D$3^(-0.961)*VLOOKUP(T46,Søer!$B$9:$D$208,3,FALSE)^(-1.154)*VLOOKUP(T46,Søer!$B$9:$D$208,2,FALSE),0) -> 0
C47: 7 | D47: 1 | E47: Delvist vådt | G47: >50 | J47: 53.4768089 | L47: Modreat omsat tørv med indslag af mellemkornet sand | N47: 0.5 | O47: Moderat (<25%) | P47: 0.5 | Q47: 1 | R47: 251.62 | T47: 7 | U47: 0.3853271461 | V47: 0.3853271461 | W47: 0.3853271461 | X47: 0.28 | Y47: 0.0234 | AA47: 800.0000001 | AB47: 110 | AC47: 4900 | AD47: 24.70629364 | AE47: 264 | AF47: 264 | AG47: =IF(AF47-_xlfn.IFNA(VLOOKUP(T47,Biomassehøst!$B$7:$D$207,3,FALSE),0)<0,0,AF47-_xlfn.IFNA(VLOOKUP(T47,Biomassehøst!$B$7:$D$207,3,FALSE),0)) -> 264 | AH47: 24.70629364 | AI47: 0.002334107514 | AJ47: =IF(AI47="","",AI47*R47*(D47-_xlfn.IFNA(VLOOKUP(T47,Søer!$B$9:$C$208,2,FALSE),0))) -> 0.5873081328 | AK47: =IFERROR(161.6 * Søer!$D$3^(-0.961)*VLOOKUP(T47,Søer!$B$9:$D$208,3,FALSE)^(-1.154)*VLOOKUP(T47,Søer!$B$9:$D$208,2,FALSE),0) -> 0
C48: 8 | D48: 0.34 | E48: Delvist vådt | G48: >50 | J48: 53.4768089 | L48: Modreat omsat tørv med indslag af mellemkornet sand | N48: 0.5 | O48: Moderat (<25%) | P48: 0.5 | Q48: 1 | R48: 251.62 | T48: 8 | U48: 0.5779907191 | V48: 0.5779907191 | W48: 0.5779907191 | X48: 0.28 | Y48: 0.0234 | AA48: 1200 | AB48: 40 | AC48: 2800 | AD48: 38.82417572 | AE48: 144 | AF48: 48.96000001 | AG48: =IF(AF48-_xlfn.IFNA(VLOOKUP(T48,Biomassehøst!$B$7:$D$207,3,FALSE),0)<0,0,AF48-_xlfn.IFNA(VLOOKUP(T48,Biomassehøst!$B$7:$D$207,3,FALSE),0)) -> 48.96000001 | AH48: 38.82417572 | AI48: 0.001513807271 | AJ48: =IF(AI48="","",AI48*R48*(D48-_xlfn.IFNA(VLOOKUP(T48,Søer!$B$9:$C$208,2,FALSE),0))) -> 0.129507423 | AK48: =IFERROR(161.6 * Søer!$D$3^(-0.961)*VLOOKUP(T48,Søer!$B$9:$D$208,3,FALSE)^(-1.154)*VLOOKUP(T48,Søer!$B$9:$D$208,2,FALSE),0) -> 0
C49: 9 | D49: 1.27 | E49: Delvist vådt | G49: <50 | J49: 160.4304267 | L49: Modreat omsat tørv med indslag af mellemkornet sand | N49: 0.5 | O49: Moderat (<25%) | P49: 0.5 | Q49: 1 | R49: 251.62 | T49: 9 | U49: 0.3684690835 | V49: 0.3684690835 | W49: 0.3684690835 | X49: 0.28 | Y49: 0.0234 | AA49: 765.0000001 | AB49: 130 | AC49: 13000 | AD49: 55.46310817 | AE49: 298.35 | AF49: 378.9045 | AG49: =IF(AF49-_xlfn.IFNA(VLOOKUP(T49,Biomassehøst!$B$7:$D$207,3,FALSE),0)<0,0,AF49-_xlfn.IFNA(VLOOKUP(T49,Biomassehøst!$B$7:$D$207,3,FALSE),0)) -> 378.9045 | AH49: 55.46310817 | AI49: 0.001075658737 | AJ49: =IF(AI49="","",AI49*R49*(D49-_xlfn.IFNA(VLOOKUP(T49,Søer!$B$9:$C$208,2,FALSE),0))) -> 0.3437347093 | AK49: =IFERROR(161.6 * Søer!$D$3^(-0.961)*VLOOKUP(T49,Søer!$B$9:$D$208,3,FALSE)^(-1.154)*VLOOKUP(T49,Søer!$B$9:$D$208,2,FALSE),0) -> 0
C50: 10 | D50: 0.47 | E50: Delvist vådt | G50: >50 | J50: 53.4768089 | L50: Modreat omsat tørv med indslag af mellemkornet sand | N50: 0.5 | O50: Moderat (<25%) | P50: 0.5 | Q50: 1 | R50: 251.62 | T50: 10 | U50: 0.6068902551 | V50: 0.6068902551 | W50: 0.6068902551 | X50: 0.28 | Y50: 0.0234 | AA50: 1260 | AB50: 95 | AC50: 4500 | AD50: 26.27199861 | AE50: 359.1 | AF50: 168.777 | AG50: =IF(AF50-_xlfn.IFNA(VLOOKUP(T50,Biomassehøst!$B$7:$D$207,3,FALSE),0)<0,0,AF50-_xlfn.IFNA(VLOOKUP(T50,Biomassehøst!$B$7:$D$207,3,FALSE),0)) -> 168.777 | AH50: 26.27199861 | AI50: 0.00220067614 | AJ50: =IF(AI50="","",AI50*R50*(D50-_xlfn.IFNA(VLOOKUP(T50,Søer!$B$9:$C$208,2,FALSE),0))) -> 0.2602550412 | AK50: =IFERROR(161.6 * Søer!$D$3^(-0.961)*VLOOKUP(T50,Søer!$B$9:$D$208,3,FALSE)^(-1.154)*VLOOKUP(T50,Søer!$B$9:$D$208,2,FALSE),0) -> 0
C51: 11 | D51: 0.79 | E51: Delvist vådt | G51: >50 | J51: 53.4768089 | L51: Modreat omsat tørv med indslag af mellemkornet sand | N51: 0.5 | O51: Moderat (<25%) | P51: 0.5 | Q51: 1 | R51: 251.62 | T51: 11 | U51: 0.5201916472 | V51: 0.5201916472 | W51: 0.5201916472 | X51: 0.28 | Y51: 0.0234 | AA51: 1080 | AB51: 110 | AC51: 3100 | AD51: 15.6305123 | AE51: 356.4 | AF51: 281.556 | AG51: =IF(AF51-_xlfn.IFNA(VLOOKUP(T51,Biomassehøst!$B$7:$D$207,3,FALSE),0)<0,0,AF51-_xlfn.IFNA(VLOOKUP(T51,Biomassehøst!$B$7:$D$207,3,FALSE),0)) -> 281.556 | AH51: 15.6305123 | AI51: 0.003619130128 | AJ51: =IF(AI51="","",AI51*R51*(D51-_xlfn.IFNA(VLOOKUP(T51,Søer!$B$9:$C$208,2,FALSE),0))) -> 0.7194099631 | AK51: =IFERROR(161.6 * Søer!$D$3^(-0.961)*VLOOKUP(T51,Søer!$B$9:$D$208,3,FALSE)^(-1.154)*VLOOKUP(T51,Søer!$B$9:$D$208,2,FALSE),0) -> 0
C52: 12 | D52: 1.02 | E52: Delvist vådt | G52: <50 | J52: 160.4304267 | L52: Modreat omsat tørv med indslag af mellemkornet sand | N52: 0.5 | O52: Moderat (<25%) | P52: 0.5 | Q52: 1 | R52: 251.62 | T52: 12 | U52: 0.5201916472 | V52: 0.5201916472 | W52: 0.5201916472 | X52: 0.28 | Y52: 0.0234 | AA52: 1080 | AB52: 71 | AC52: 2100 | AD52: 16.40458129 | AE52: 230.04 | AF52: 234.6408 | AG52: =IF(AF52-_xlfn.IFNA(VLOOKUP(T52,Biomassehøst!$B$7:$D$207,3,FALSE),0)<0,0,AF52-_xlfn.IFNA(VLOOKUP(T52,Biomassehøst!$B$7:$D$207,3,FALSE),0)) -> 234.6408 | AH52: 16.40458129 | AI52: 0.003455364944 | AJ52: =IF(AI52="","",AI52*R52*(D52-_xlfn.IFNA(VLOOKUP(T52,Søer!$B$9:$C$208,2,FALSE),0))) -> 0.8868277056 | AK52: =IFERROR(161.6 * Søer!$D$3^(-0.961)*VLOOKUP(T52,Søer!$B$9:$D$208,3,FALSE)^(-1.154)*VLOOKUP(T52,Søer!$B$9:$D$208,2,FALSE),0) -> 0
C53: 13 | D53: 1.18 | E53: Delvist vådt | G53: <50 | J53: 160.4304267 | L53: Modreat omsat tørv med indslag af mellemkornet sand | N53: 0.5 | O53: Moderat (<25%) | P53: 0.5 | Q53: 1 | R53: 251.62 | T53: 13 | U53: 0.4513144199 | V53: 0.4513144199 | W53: 0.4513144199 | X53: 0.28 | Y53: 0.0234 | AA53: 937.0000001 | AB53: 61 | AC53: 3200 | AD53: 29.09540101 | AE53: 171.471 | AF53: 202.33578 | AG53: =IF(AF53-_xlfn.IFNA(VLOOKUP(T53,Biomassehøst!$B$7:$D$207,3,FALSE),0)<0,0,AF53-_xlfn.IFNA(VLOOKUP(T53,Biomassehøst!$B$7:$D$207,3,FALSE),0)) -> 202.33578 | AH53: 29.09540101 | AI53: 0.001995661191 | AJ53: =IF(AI53="","",AI53*R53*(D53-_xlfn.IFNA(VLOOKUP(T53,Søer!$B$9:$C$208,2,FALSE),0))) -> 0.5925349572 | AK53: =IFERROR(161.6 * Søer!$D$3^(-0.961)*VLOOKUP(T53,Søer!$B$9:$D$208,3,FALSE)^(-1.154)*VLOOKUP(T53,Søer!$B$9:$D$208,2,FALSE),0) -> 0
C54: 14 | D54: 0.53 | E54: Delvist vådt | G54: <50 | J54: 160.4304267 | L54: Modreat omsat tørv med indslag af mellemkornet sand | N54: 0.5 | O54: Moderat (<25%) | P54: 0.5 | Q54: 1 | R54: 251.62 | T54: 14 | U54: 0.7032220416 | V54: 0.7032220416 | W54: 0.7032220416 | X54: 0.28 | Y54: 0.0234 | AA54: 1460 | AB54: 44 | AC54: 710 | AD54: 8.949728819 | AE54: 192.72 | AF54: 102.1416 | AG54: =IF(AF54-_xlfn.IFNA(VLOOKUP(T54,Biomassehøst!$B$7:$D$207,3,FALSE),0)<0,0,AF54-_xlfn.IFNA(VLOOKUP(T54,Biomassehøst!$B$7:$D$207,3,FALSE),0)) -> 102.1416 | AH54: 8.949728819 | AI54: 0.006174427209 | AJ54: =IF(AI54="","",AI54*R54*(D54-_xlfn.IFNA(VLOOKUP(T54,Søer!$B$9:$C$208,2,FALSE),0))) -> 0.8234129685 | AK54: =IFERROR(161.6 * Søer!$D$3^(-0.961)*VLOOKUP(T54,Søer!$B$9:$D$208,3,FALSE)^(-1.154)*VLOOKUP(T54,Søer!$B$9:$D$208,2,FALSE),0) -> 0
C55: 15 | D55: 1.49 | E55: Tørt | J55: 0 | L55: Modreat omsat tørv med indslag af mellemkornet sand | N55: 0.5 | O55: Moderat (<25%) | P55: 0.5 | Q55: 1 | R55: 0 | T55: 15 | U55: 0.8332699534 | V55: 0.8332699534 | W55: 0.8332699534 | X55: 0.28 | Y55: 0.0234 | AA55: 1730 | AB55: 86 | AC55: 1800 | AD55: 11.60855752 | AE55: 446.3400001 | AF55: 0 | AG55: =IF(AF55-_xlfn.IFNA(VLOOKUP(T55,Biomassehøst!$B$7:$D$207,3,FALSE),0)<0,0,AF55-_xlfn.IFNA(VLOOKUP(T55,Biomassehøst!$B$7:$D$207,3,FALSE),0)) -> 0 | AI55: 0 | AJ55: =IF(AI55="","",AI55*R55*(D55-_xlfn.IFNA(VLOOKUP(T55,Søer!$B$9:$C$208,2,FALSE),0))) -> 0 | AK55: =IFERROR(161.6 * Søer!$D$3^(-0.961)*VLOOKUP(T55,Søer!$B$9:$D$208,3,FALSE)^(-1.154)*VLOOKUP(T55,Søer!$B$9:$D$208,2,FALSE),0) -> 0
C56: 16 | D56: 0.78 | E56: Delvist vådt | G56: >50 | J56: 53.4768089 | L56: Modreat omsat tørv med indslag af mellemkornet sand | N56: 0.5 | O56: Moderat (<25%) | P56: 0.5 | Q56: 1 | R56: 251.62 | T56: 16 | U56: 0.8958856147 | V56: 0.8958856147 | W56: 0.8958856147 | X56: 0.28 | Y56: 0.0234 | AA56: 1860 | AB56: 54 | AC56: 1300 | AD56: 13.35222974 | AE56: 301.32 | AF56: 235.0296 | AG56: =IF(AF56-_xlfn.IFNA(VLOOKUP(T56,Biomassehøst!$B$7:$D$207,3,FALSE),0)<0,0,AF56-_xlfn.IFNA(VLOOKUP(T56,Biomassehøst!$B$7:$D$207,3,FALSE),0)) -> 235.0296 | AH56: 13.35222974 | AI56: 0.004208719668 | AJ56: =IF(AI56="","",AI56*R56*(D56-_xlfn.IFNA(VLOOKUP(T56,Søer!$B$9:$C$208,2,FALSE),0))) -> 0.8260184734 | AK56: =IFERROR(161.6 * Søer!$D$3^(-0.961)*VLOOKUP(T56,Søer!$B$9:$D$208,3,FALSE)^(-1.154)*VLOOKUP(T56,Søer!$B$9:$D$208,2,FALSE),0) -> 0
C57: 17 | D57: 1.3 | E57: Delvist vådt | G57: <50 | J57: 160.4304267 | L57: Modreat omsat tørv med indslag af mellemkornet sand | N57: 0.5 | O57: Moderat (<25%) | P57: 0.5 | Q57: 1 | R57: 251.62 | T57: 17 | U57: 0.5731741298 | V57: 0.5731741298 | W57: 0.5731741298 | X57: 0.28 | Y57: 0.0234 | AA57: 1190 | AB57: 36 | AC57: 2700 | AD57: 41.59733113 | AE57: 128.52 | AF57: 167.076 | AG57: =IF(AF57-_xlfn.IFNA(VLOOKUP(T57,Biomassehøst!$B$7:$D$207,3,FALSE),0)<0,0,AF57-_xlfn.IFNA(VLOOKUP(T57,Biomassehøst!$B$7:$D$207,3,FALSE),0)) -> 167.076 | AH57: 41.59733113 | AI57: 0.001416986846 | AJ57: =IF(AI57="","",AI57*R57*(D57-_xlfn.IFNA(VLOOKUP(T57,Søer!$B$9:$C$208,2,FALSE),0))) -> 0.4635048993 | AK57: =IFERROR(161.6 * Søer!$D$3^(-0.961)*VLOOKUP(T57,Søer!$B$9:$D$208,3,FALSE)^(-1.154)*VLOOKUP(T57,Søer!$B$9:$D$208,2,FALSE),0) -> 0
C58: 18 | D58: 1.49 | E58: Delvist vådt | G58: <50 | J58: 160.4304267 | L58: Modreat omsat tørv med indslag af mellemkornet sand | N58: 0.5 | O58: Moderat (<25%) | P58: 0.5 | Q58: 1 | R58: 251.62 | T58: 18 | U58: 0.7224883989 | V58: 0.7224883989 | W58: 0.7224883989 | X58: 0.28 | Y58: 0.0234 | AA58: 1500 | AB58: 9.7 | AC58: 870 | AD58: 49.74526197 | AE58: 43.65000001 | AF58: 65.03850001 | AG58: =IF(AF58-_xlfn.IFNA(VLOOKUP(T58,Biomassehøst!$B$7:$D$207,3,FALSE),0)<0,0,AF58-_xlfn.IFNA(VLOOKUP(T58,Biomassehøst!$B$7:$D$207,3,FALSE),0)) -> 65.03850001 | AH58: 49.74526197 | AI58: 0.001193829721 | AJ58: =IF(AI58="","",AI58*R58*(D58-_xlfn.IFNA(VLOOKUP(T58,Søer!$B$9:$C$208,2,FALSE),0))) -> 0.4475832371 | AK58: =IFERROR(161.6 * Søer!$D$3^(-0.961)*VLOOKUP(T58,Søer!$B$9:$D$208,3,FALSE)^(-1.154)*VLOOKUP(T58,Søer!$B$9:$D$208,2,FALSE),0) -> 0
C59: 19 | D59: 0.85 | E59: Delvist vådt | G59: >50 | J59: 53.4768089 | L59: Mellemkornet sand | N59: 1 | O59: Moderat (<25%) | P59: 0.5 | Q59: 1 | R59: 251.62 | T59: 19 | U59: 0.7080386309 | V59: 0.7080386309 | W59: 0.7080386309 | X59: 0.28 | Y59: 0.0234 | AA59: 1470 | AB59: 20 | AC59: 1000 | AD59: 27.73155409 | AE59: 88.20000001 | AF59: 74.97000001 | AG59: =IF(AF59-_xlfn.IFNA(VLOOKUP(T59,Biomassehøst!$B$7:$D$207,3,FALSE),0)<0,0,AF59-_xlfn.IFNA(VLOOKUP(T59,Biomassehøst!$B$7:$D$207,3,FALSE),0)) -> 74.97000001 | AH59: 27.73155409 | AI59: 0.002089590788 | AJ59: =IF(AI59="","",AI59*R59*(D59-_xlfn.IFNA(VLOOKUP(T59,Søer!$B$9:$C$208,2,FALSE),0))) -> 0.4469154089 | AK59: =IFERROR(161.6 * Søer!$D$3^(-0.961)*VLOOKUP(T59,Søer!$B$9:$D$208,3,FALSE)^(-1.154)*VLOOKUP(T59,Søer!$B$9:$D$208,2,FALSE),0) -> 0
C60: 20 | D60: 1.21 | E60: Tørt | G60: <50 | J60: 0 | L60: Modreat omsat tørv med indslag af mellemkornet sand | N60: 0.5 | O60: Moderat (<25%) | P60: 0.5 | Q60: 1 | R60: 0 | T60: 20 | U60: 0.7273049882 | V60: 0.7273049882 | W60: 0.7273049882 | X60: 0.28 | Y60: 0.0234 | AA60: 1510 | AB60: 140 | AC60: 1700 | AD60: 6.734805992 | AE60: 634.2000001 | AF60: 0 | AG60: =IF(AF60-_xlfn.IFNA(VLOOKUP(T60,Biomassehøst!$B$7:$D$207,3,FALSE),0)<0,0,AF60-_xlfn.IFNA(VLOOKUP(T60,Biomassehøst!$B$7:$D$207,3,FALSE),0)) -> 0 | AI60: 0 | AJ60: =IF(AI60="","",AI60*R60*(D60-_xlfn.IFNA(VLOOKUP(T60,Søer!$B$9:$C$208,2,FALSE),0))) -> 0 | AK60: =IFERROR(161.6 * Søer!$D$3^(-0.961)*VLOOKUP(T60,Søer!$B$9:$D$208,3,FALSE)^(-1.154)*VLOOKUP(T60,Søer!$B$9:$D$208,2,FALSE),0) -> 0
C61: 21 | D61: 0.72 | E61: Delvist vådt | G61: >50 | J61: 53.4768089 | L61: Modreat omsat tørv med indslag af mellemkornet sand | N61: 0.5 | O61: Moderat (<25%) | P61: 0.5 | Q61: 1 | R61: 251.62 | T61: 21 | U61: 0.7080386309 | V61: 0.7080386309 | W61: 0.7080386309 | X61: 0.28 | Y61: 0.0234 | AA61: 1470 | AB61: 140 | AC61: 6600 | AD61: 26.14689385 | AE61: 617.4000001 | AF61: 444.5280001 | AG61: =IF(AF61-_xlfn.IFNA(VLOOKUP(T61,Biomassehøst!$B$7:$D$207,3,FALSE),0)<0,0,AF61-_xlfn.IFNA(VLOOKUP(T61,Biomassehøst!$B$7:$D$207,3,FALSE),0)) -> 444.5280001 | AH61: 26.14689385 | AI61: 0.002210762438 | AJ61: =IF(AI61="","",AI61*R61*(D61-_xlfn.IFNA(VLOOKUP(T61,Søer!$B$9:$C$208,2,FALSE),0))) -> 0.4005158721 | AK61: =IFERROR(161.6 * Søer!$D$3^(-0.961)*VLOOKUP(T61,Søer!$B$9:$D$208,3,FALSE)^(-1.154)*VLOOKUP(T61,Søer!$B$9:$D$208,2,FALSE),0) -> 0
C62: 22 | D62: 0.28 | E62: Delvist vådt | G62: >50 | J62: 53.4768089 | L62: Modreat omsat tørv med indslag af mellemkornet sand | N62: 0.5 | O62: Moderat (<25%) | P62: 0.5 | Q62: 1 | R62: 251.62 | T62: 22 | U62: 0.6406063804 | V62: 0.6406063804 | W62: 0.6406063804 | X62: 0.28 | Y62: 0.0234 | AA62: 1330 | AB62: 160 | AC62: 3600 | AD62: 12.47919934 | AE62: 638.4000001 | AF62: 178.752 | AG62: =IF(AF62-_xlfn.IFNA(VLOOKUP(T62,Biomassehøst!$B$7:$D$207,3,FALSE),0)<0,0,AF62-_xlfn.IFNA(VLOOKUP(T62,Biomassehøst!$B$7:$D$207,3,FALSE),0)) -> 178.752 | AH62: 12.47919934 | AI62: 0.004490385809 | AJ62: =IF(AI62="","",AI62*R62*(D62-_xlfn.IFNA(VLOOKUP(T62,Søer!$B$9:$C$208,2,FALSE),0))) -> 0.3163638456 | AK62: =IFERROR(161.6 * Søer!$D$3^(-0.961)*VLOOKUP(T62,Søer!$B$9:$D$208,3,FALSE)^(-1.154)*VLOOKUP(T62,Søer!$B$9:$D$208,2,FALSE),0) -> 0
C63: 23 | D63: 1.49 | E63: Tørt | J63: 0 | L63: Modreat omsat tørv med indslag af mellemkornet sand | N63: 0.5 | O63: Moderat (<25%) | P63: 0.5 | Q63: 1 | R63: 0 | T63: 23 | U63: 0.8669860787 | V63: 0.8669860787 | W63: 0.8669860787 | X63: 0.28 | Y63: 0.0234 | AA63: 1800 | AB63: 90 | AC63: 4900 | AD63: 30.19658112 | AE63: 486.0000001 | AF63: 0 | AG63: =IF(AF63-_xlfn.IFNA(VLOOKUP(T63,Biomassehøst!$B$7:$D$207,3,FALSE),0)<0,0,AF63-_xlfn.IFNA(VLOOKUP(T63,Biomassehøst!$B$7:$D$207,3,FALSE),0)) -> 0 | AI63: 0 | AJ63: =IF(AI63="","",AI63*R63*(D63-_xlfn.IFNA(VLOOKUP(T63,Søer!$B$9:$C$208,2,FALSE),0))) -> 0 | AK63: =IFERROR(161.6 * Søer!$D$3^(-0.961)*VLOOKUP(T63,Søer!$B$9:$D$208,3,FALSE)^(-1.154)*VLOOKUP(T63,Søer!$B$9:$D$208,2,FALSE),0) -> 0
C64: 24 | D64: 1.03 | E64: Delvist vådt | G64: <50 | J64: 160.4304267 | L64: Modreat omsat tørv med indslag af mellemkornet sand | N64: 0.5 | O64: Ingen | P64: 0 | Q64: 0.5 | R64: 251.62 | T64: 24 | U64: 0.6165234337 | V64: 0.6165234337 | W64: 0.6165234337 | X64: 0.28 | Y64: 0.0234 | AA64: 1280 | AB64: 60 | AC64: 3700 | AD64: 34.20225004 | AE64: 230.4 | AF64: 237.312 | AG64: =IF(AF64-_xlfn.IFNA(VLOOKUP(T64,Biomassehøst!$B$7:$D$207,3,FALSE),0)<0,0,AF64-_xlfn.IFNA(VLOOKUP(T64,Biomassehøst!$B$7:$D$207,3,FALSE),0)) -> 237.312 | AH64: 34.20225004 | AI64: 0.00170925223 | AJ64: =IF(AI64="","",AI64*R64*(D64-_xlfn.IFNA(VLOOKUP(T64,Søer!$B$9:$C$208,2,FALSE),0))) -> 0.4429845076 | AK64: =IFERROR(161.6 * Søer!$D$3^(-0.961)*VLOOKUP(T64,Søer!$B$9:$D$208,3,FALSE)^(-1.154)*VLOOKUP(T64,Søer!$B$9:$D$208,2,FALSE),0) -> 0
C65: 25 | D65: 0.24 | E65: Delvist vådt | G65: >50 | J65: 53.4768089 | L65: Modreat omsat tørv med indslag af mellemkornet sand | N65: 0.5 | O65: Ingen | P65: 0 | Q65: 0.5 | R65: 251.62 | T65: 25 | U65: 0.4590209628 | V65: 0.4590209628 | W65: 0.4590209628 | X65: 0.28 | Y65: 0.0234 | AA65: 953.0000001 | AB65: 120 | AC65: 4700 | AD65: 21.7230507 | AE65: 343.08 | AF65: 82.33920001 | AG65: =IF(AF65-_xlfn.IFNA(VLOOKUP(T65,Biomassehøst!$B$7:$D$207,3,FALSE),0)<0,0,AF65-_xlfn.IFNA(VLOOKUP(T65,Biomassehøst!$B$7:$D$207,3,FALSE),0)) -> 82.33920001 | AH65: 21.7230507 | AI65: 0.002640343282 | AJ65: =IF(AI65="","",AI65*R65*(D65-_xlfn.IFNA(VLOOKUP(T65,Søer!$B$9:$C$208,2,FALSE),0))) -> 0.1594471624 | AK65: =IFERROR(161.6 * Søer!$D$3^(-0.961)*VLOOKUP(T65,Søer!$B$9:$D$208,3,FALSE)^(-1.154)*VLOOKUP(T65,Søer!$B$9:$D$208,2,FALSE),0) -> 0
C66: 26 | D66: 0.14 | E66: Delvist vådt | G66: >50 | J66: 53.4768089 | L66: Modreat omsat tørv med indslag af mellemkornet sand | N66: 0.5 | O66: Ingen | P66: 0 | Q66: 0.5 | R66: 251.62 | T66: 26 | U66: 0.4961087006 | V66: 0.4961087006 | W66: 0.4961087006 | X66: 0.28 | Y66: 0.0234 | AA66: 1030 | AB66: 67 | AC66: 3300 | AD66: 27.31765029 | AE66: 207.03 | AF66: 28.9842 | AG66: =IF(AF66-_xlfn.IFNA(VLOOKUP(T66,Biomassehøst!$B$7:$D$207,3,FALSE),0)<0,0,AF66-_xlfn.IFNA(VLOOKUP(T66,Biomassehøst!$B$7:$D$207,3,FALSE),0)) -> 28.9842 | AH66: 27.31765029 | AI66: 0.002119911914 | AJ66: =IF(AI66="","",AI66*R66*(D66-_xlfn.IFNA(VLOOKUP(T66,Søer!$B$9:$C$208,2,FALSE),0))) -> 0.07467771302 | AK66: =IFERROR(161.6 * Søer!$D$3^(-0.961)*VLOOKUP(T66,Søer!$B$9:$D$208,3,FALSE)^(-1.154)*VLOOKUP(T66,Søer!$B$9:$D$208,2,FALSE),0) -> 0
C67: 27 | D67: 1.33 | E67: Tørt | J67: 0 | L67: Modreat omsat tørv med indslag af mellemkornet sand | N67: 0.5 | O67: Moderat (<25%) | P67: 0.5 | Q67: 1 | R67: 0 | T67: 27 | U67: 0.4912921113 | V67: 0.4912921113 | W67: 0.4912921113 | X67: 0.28 | Y67: 0.0234 | AA67: 1020 | AB67: 49 | AC67: 1900 | AD67: 21.50610317 | AE67: 149.94 | AF67: 0 | AG67: =IF(AF67-_xlfn.IFNA(VLOOKUP(T67,Biomassehøst!$B$7:$D$207,3,FALSE),0)<0,0,AF67-_xlfn.IFNA(VLOOKUP(T67,Biomassehøst!$B$7:$D$207,3,FALSE),0)) -> 0 | AI67: 0 | AJ67: =IF(AI67="","",AI67*R67*(D67-_xlfn.IFNA(VLOOKUP(T67,Søer!$B$9:$C$208,2,FALSE),0))) -> 0 | AK67: =IFERROR(161.6 * Søer!$D$3^(-0.961)*VLOOKUP(T67,Søer!$B$9:$D$208,3,FALSE)^(-1.154)*VLOOKUP(T67,Søer!$B$9:$D$208,2,FALSE),0) -> 0
D68: =SUM(D$40:D67) -> 24.96 | AG68: =Ppulje -> 5031.583741 | AJ68: (areal*Qfelt*frigivelses rate)
C69: Type af område | H69: Tabel til bestemmelse af permeabilitet (flere detaljer finde i afsnit 2.2 + 3.7)
T70: A. Samlet fosforfrigivelse fra projektområdet | Y70: Samlet fosfor (PBD) pulje i projektområdet
T71: =IF(AJ66="","",SUM(AJ$40:AJ67)) -> 16.31193624 | U71: kg P år-1 | Y71: =IF(AG66="","",SUM(AG$40:AG67)) -> 5031.583741 | AA71: kg
T74: Fosfortilbageholdelse ved sedimentation
T75: Tilbageholdelsen beregnes ud fra proceduren beskrevet i kapitel 4 og 5 i vejledning, og er afhænger af typen af vådområde. Fosfor balancen er beregnet jf. kapitel 8.
T77: B: Overrisling (kapitel 4)
T78: Drænet oplandsareal til overrisling | X78: 47 | Y78: ha | AA78: Obs! Indsæt 0 hvis der ikke er overrisling
T79: B. Fosfortilbageholdelse | X79: =IF(X78="","",0.062*X78) -> 2.914 | Y79: kg P år-1 | AA79: beregnes ud fra en vejledende værdi på 0.062 kg ha-1 år-1
T82: C: Sedimentation ved oversvømmelse (kapitel 5)
T83: Vandløbstype
T84: 1: Oplandsareal <10 km2, dog min. 2 km2
T85: 2: Oplandsareal 10-100 km2
T86: 3: Oplandsareal >100 km2
T88: Der må maks. regnes sedimentation for et område op til | Z88: =IF($X$83="","",IF($X$83=1,25,IF($X$83=2,75,100))) ->  | AA88: meter fra vandløbet på hver side (oversvømmet areal)
T89: Oversvømmet areal bestemmes efter kapitel 5 i vejledningen - manuel eller modelberegnet
T91: Manuelt beregnet oversvømmet areal
T92: Vandløbsstrækning | Y92: m | Z92: Længde af vandløbsstrækning grænsende op til projektområdet
T93: Bredde for sedimentationsområde | Y93: m | Z93: =IF(X93>Z88,"Større end den maksimale bredde for denne type vandløb","") -> 
T94: Oversvømmet areal | X94: =IF(X93="","",X92*X93/10000) ->  | Y94: ha
T96: Modelberegnet oversvømmet areal
T97: Modelberegnet oversvømmet areal | Y97: ha
T99: Dage med oversvømmelse | Y99: antal dage år-1 | Z99: Gælder både for manuelt beregnet og modelberegnet
T101: Forventet tab af partikelbundet fosfor fra oplandet (beregnes med lingning 2, kapitel 5)
T102: Årsafstrømning | X102: =IF(X83="","",G28) ->  | Y102: mm år-1
T103: Qflom | X103: =IF(X102="","",(1-G33)*X102) ->  | Y103: mm år-1
T104: Andel sandjord i vandløbsopland (S) | X104: =IFERROR(DMI!V29,"") -> 28.10456648 | Y104: %
T105: Andel landbrugsjord i vandløbsopland (A) | X105: =IFERROR(DMI!X29,"") -> 63.8164359 | Y105: %
T106: Hældning på vandløb (SL) | Y106: ‰ eller m/km
T107: Andel af eng/mose i vandløbsopland (EM) | X107: =IFERROR(DMI!W29,"") -> 4.907853084 | Y107: % | AA107: Kode 4110 + 4120 i AIS arealanvendelses tema
T108: Partikelbundet P (PP) | X108: =IF(X107="","",1.09*EXP(-7.6634+0.9208*LN(X103)+0.0229*X105+0.0092*X104+0.0187*X106-0.0412*X107)) ->  | Y108: kg P ha-1 år-1
T109: Fosfordeponering_metode1 LIGNING 1 | X109: =IF(X111="","",IF(AND(X94="",X97=""),"angiv areal",IF(X97="",X99*X111*X94,X99*X111*X97))) ->  | Y109: kg P år-1 | AA109: Beregning af deponering med ligning 1, Kap 5.2
T110: Fosfordeponering_metode2 LIGNING 2 | X110: =IF(OR(X108="",Fosfordeponi=0),"",IF(AND(X94="",X97=""),"angiv areal", X108*G13*0.1)) ->  | Y110: kg P år-1 | AA110: Beregning af deponering med ligning 2, Kap 5.3 (MAKSIMAL årlig sedimentation af fosfor; i.e. 10 % af årlig PP transport i vandløb)
T111: Fosfordeponeringsrate | X111: =IF(X108="","",IF( X108<0.14,0.5,IF(AND(X108>=0.14,X108<=0.36),1,1.5))) ->  | Y111: kg P oversvømmet ha-1 år-1
T112: C. Valgt Fosfordeponering | X112: =IF(X109>X110,X110,X109) ->  | Y112: kg P år-1 | AA112: Obs!! Hvis beregning 1 > beregning 2 vælges beregning 2 automatisk ellers anvendes 1
T115: (kapitel 8 i vejledningen).
T116: D. Fosfortab fra søer | X116: =SUM(AK$40:AK67) -> 0 | Y116: kg P år-1 | AA116: Ny viden: Nyt faneblad "SØER" beregner P tab i nyretablerede søer med ny formel specielt for søer
T119: Total fosfortilbageholdelse (-A+B+C-D) | X119: =IF(ISNUMBER(Ptab),-Ptab,0)+IF(ISNUMBER(X79),X79,0)+IF(ISNUMBER(X112),X112,0)+IF(ISNUMBER(X116),-X116,0) -> -13.39793624 | Y119: kg P år-1 | AA119: Negative tal=frigivelse/tab af P. Positive tal=tilbageholdelse af P
C136: Skjules når det endelige ark laves
C137: Type | F137: Grundvandstand | G137: Permeabilitet | H137: Dræningsintensitet | I137: Dræningsfaktor | M137: Molvægt (g/mol) | O137: Type projekt | R137: Vandløbstype
C138: Permanent vådt | F138: 0 | G138: 1 | H138: Intensiv (>25%) | I138: 1 | M138: P | N138: 30.973761 | O138: A | P138: A: Overrisling med drænvand | R138: 1
C139: Delvist vådt | F139: <50 | G139: 0.5 | H139: Moderat (<25%) | M139: Fe | N139: 55.8457 | O139: B | P139: B: Oversvømmelse med vandløbsvand | R139: 2
C140: Tørt | F140: >50 | G140: 0 | H140: Ingen | O140: C | P140: C: Overrisling + oversvømmelse | R140: 3
O141: D | P141: D: Sødannelse
C143: m24 | E143: Korrektion af nedbør | I143: Grundvandsdybde
C144: 1 | F144: Frit eksponeret | I144: Permanent vådt
C145: 2 | F145: Moderat læ | I145: Højtliggende grundvandsspejl
C146: 3 | F146: Ideelt læ | I146: Dybtliggende grundvandsspejs (>1m)
C147: 4 | F147: År
C148: 5 | E148: Frit | F148: 27
C149: 6 | E149: Moderat | F149: 21
C150: 7 | E150: Ideelt | F150: 16
C151: 8
C152: 9

Sheet Søer
B1: Søer | F1: Vejledning til indtastning I dette faneblad
B3: Opholdstid (tw, dage) | F3: Først indtastes søens opholdstid i dage
B4: Søareal [ha] | F4: Dernæst det samlede søareal
B5: Sum af søareal i prøvefelter [ha] | D5: =SUM(C9:C209) -> 0 | F5: Hvis cellen bliver rød er der forskel på indtastet søareal i celle D4 og summen af prøvefelterne
B6: Arealvægtet Fe:P-forhold | D6: =SUMPRODUCT(C9:C209,D9:D209)/SUM(C9:C209) ->  | F6: Herefter indtastes de prøvefelter hvori der vil være sø
F7: Da det IKKE nødvendigvis er hele prøvefeltet der bliver til sø indtastes arealet af den del af prøvefeltet der bliver til sø
B8: Prøvefelt | C8: Søareal [ha] | D8: Fe:P | F8: Hvis sø indgår i projektet fremgår beregningerne af kolonne AK i fanebladet "Vandgennemstrømning" og det totale tab fra søen kan ses i celle X90
D9: =IF(ISERROR(VLOOKUP(B9,Vandgennemstrømning!$T$41:$AH$265,15,FALSE)),"",VLOOKUP(B9,Vandgennemstrømning!$T$41:$AH$265,15,FALSE)) -> 
D10: =IF(ISERROR(VLOOKUP(B10,Vandgennemstrømning!$T$41:$AH$265,15,FALSE)),"",VLOOKUP(B10,Vandgennemstrømning!$T$41:$AH$265,15,FALSE)) -> 
D11: =IF(ISERROR(VLOOKUP(B11,Vandgennemstrømning!$T$41:$AH$265,15,FALSE)),"",VLOOKUP(B11,Vandgennemstrømning!$T$41:$AH$265,15,FALSE)) -> 
D12: =IF(ISERROR(VLOOKUP(B12,Vandgennemstrømning!$T$41:$AH$265,15,FALSE)),"",VLOOKUP(B12,Vandgennemstrømning!$T$41:$AH$265,15,FALSE)) -> 
D13: =IF(ISERROR(VLOOKUP(B13,Vandgennemstrømning!$T$41:$AH$265,15,FALSE)),"",VLOOKUP(B13,Vandgennemstrømning!$T$41:$AH$265,15,FALSE)) -> 
D14: =IF(ISERROR(VLOOKUP(B14,Vandgennemstrømning!$T$41:$AH$265,15,FALSE)),"",VLOOKUP(B14,Vandgennemstrømning!$T$41:$AH$265,15,FALSE)) -> 
D15: =IF(ISERROR(VLOOKUP(B15,Vandgennemstrømning!$T$41:$AH$265,15,FALSE)),"",VLOOKUP(B15,Vandgennemstrømning!$T$41:$AH$265,15,FALSE)) -> 
D16: =IF(ISERROR(VLOOKUP(B16,Vandgennemstrømning!$T$41:$AH$265,15,FALSE)),"",VLOOKUP(B16,Vandgennemstrømning!$T$41:$AH$265,15,FALSE)) -> 
D17: =IF(ISERROR(VLOOKUP(B17,Vandgennemstrømning!$T$41:$AH$265,15,FALSE)),"",VLOOKUP(B17,Vandgennemstrømning!$T$41:$AH$265,15,FALSE)) -> 
D18: =IF(ISERROR(VLOOKUP(B18,Vandgennemstrømning!$T$41:$AH$265,15,FALSE)),"",VLOOKUP(B18,Vandgennemstrømning!$T$41:$AH$265,15,FALSE)) -> 
D19: =IF(ISERROR(VLOOKUP(B19,Vandgennemstrømning!$T$41:$AH$265,15,FALSE)),"",VLOOKUP(B19,Vandgennemstrømning!$T$41:$AH$265,15,FALSE)) -> 
D20: =IF(ISERROR(VLOOKUP(B20,Vandgennemstrømning!$T$41:$AH$265,15,FALSE)),"",VLOOKUP(B20,Vandgennemstrømning!$T$41:$AH$265,15,FALSE)) -> 
D21: =IF(ISERROR(VLOOKUP(B21,Vandgennemstrømning!$T$41:$AH$265,15,FALSE)),"",VLOOKUP(B21,Vandgennemstrømning!$T$41:$AH$265,15,FALSE)) -> 
D22: =IF(ISERROR(VLOOKUP(B22,Vandgennemstrømning!$T$41:$AH$265,15,FALSE)),"",VLOOKUP(B22,Vandgennemstrømning!$T$41:$AH$265,15,FALSE)) -> 
D23: =IF(ISERROR(VLOOKUP(B23,Vandgennemstrømning!$T$41:$AH$265,15,FALSE)),"",VLOOKUP(B23,Vandgennemstrømning!$T$41:$AH$265,15,FALSE)) -> 
D24: =IF(ISERROR(VLOOKUP(B24,Vandgennemstrømning!$T$41:$AH$265,15,FALSE)),"",VLOOKUP(B24,Vandgennemstrømning!$T$41:$AH$265,15,FALSE)) -> 
D25: =IF(ISERROR(VLOOKUP(B25,Vandgennemstrømning!$T$41:$AH$265,15,FALSE)),"",VLOOKUP(B25,Vandgennemstrømning!$T$41:$AH$265,15,FALSE)) -> 
D26: =IF(ISERROR(VLOOKUP(B26,Vandgennemstrømning!$T$41:$AH$265,15,FALSE)),"",VLOOKUP(B26,Vandgennemstrømning!$T$41:$AH$265,15,FALSE)) -> 
D27: =IF(ISERROR(VLOOKUP(B27,Vandgennemstrømning!$T$41:$AH$265,15,FALSE)),"",VLOOKUP(B27,Vandgennemstrømning!$T$41:$AH$265,15,FALSE)) -> 
D28: =IF(ISERROR(VLOOKUP(B28,Vandgennemstrømning!$T$41:$AH$265,15,FALSE)),"",VLOOKUP(B28,Vandgennemstrømning!$T$41:$AH$265,15,FALSE)) -> 
D29: =IF(ISERROR(VLOOKUP(B29,Vandgennemstrømning!$T$41:$AH$265,15,FALSE)),"",VLOOKUP(B29,Vandgennemstrømning!$T$41:$AH$265,15,FALSE)) -> 
D30: =IF(ISERROR(VLOOKUP(B30,Vandgennemstrømning!$T$41:$AH$265,15,FALSE)),"",VLOOKUP(B30,Vandgennemstrømning!$T$41:$AH$265,15,FALSE)) -> 
D31: =IF(ISERROR(VLOOKUP(B31,Vandgennemstrømning!$T$41:$AH$265,15,FALSE)),"",VLOOKUP(B31,Vandgennemstrømning!$T$41:$AH$265,15,FALSE)) -> 
D32: =IF(ISERROR(VLOOKUP(B32,Vandgennemstrømning!$T$41:$AH$265,15,FALSE)),"",VLOOKUP(B32,Vandgennemstrømning!$T$41:$AH$265,15,FALSE)) -> 
D33: =IF(ISERROR(VLOOKUP(B33,Vandgennemstrømning!$T$41:$AH$265,15,FALSE)),"",VLOOKUP(B33,Vandgennemstrømning!$T$41:$AH$265,15,FALSE)) -> 
D34: =IF(ISERROR(VLOOKUP(B34,Vandgennemstrømning!$T$41:$AH$265,15,FALSE)),"",VLOOKUP(B34,Vandgennemstrømning!$T$41:$AH$265,15,FALSE)) -> 
D35: =IF(ISERROR(VLOOKUP(B35,Vandgennemstrømning!$T$41:$AH$265,15,FALSE)),"",VLOOKUP(B35,Vandgennemstrømning!$T$41:$AH$265,15,FALSE)) -> 
D36: =IF(ISERROR(VLOOKUP(B36,Vandgennemstrømning!$T$41:$AH$265,15,FALSE)),"",VLOOKUP(B36,Vandgennemstrømning!$T$41:$AH$265,15,FALSE)) -> 
D37: =IF(ISERROR(VLOOKUP(B37,Vandgennemstrømning!$T$41:$AH$265,15,FALSE)),"",VLOOKUP(B37,Vandgennemstrømning!$T$41:$AH$265,15,FALSE)) -> 
D38: =IF(ISERROR(VLOOKUP(B38,Vandgennemstrømning!$T$41:$AH$265,15,FALSE)),"",VLOOKUP(B38,Vandgennemstrømning!$T$41:$AH$265,15,FALSE)) -> 
D39: =IF(ISERROR(VLOOKUP(B39,Vandgennemstrømning!$T$41:$AH$265,15,FALSE)),"",VLOOKUP(B39,Vandgennemstrømning!$T$41:$AH$265,15,FALSE)) -> 
D40: =IF(ISERROR(VLOOKUP(B40,Vandgennemstrømning!$T$41:$AH$265,15,FALSE)),"",VLOOKUP(B40,Vandgennemstrømning!$T$41:$AH$265,15,FALSE)) -> 
D41: =IF(ISERROR(VLOOKUP(B41,Vandgennemstrømning!$T$41:$AH$265,15,FALSE)),"",VLOOKUP(B41,Vandgennemstrømning!$T$41:$AH$265,15,FALSE)) -> 
D42: =IF(ISERROR(VLOOKUP(B42,Vandgennemstrømning!$T$41:$AH$265,15,FALSE)),"",VLOOKUP(B42,Vandgennemstrømning!$T$41:$AH$265,15,FALSE)) -> 
D43: =IF(ISERROR(VLOOKUP(B43,Vandgennemstrømning!$T$41:$AH$265,15,FALSE)),"",VLOOKUP(B43,Vandgennemstrømning!$T$41:$AH$265,15,FALSE)) -> 
D44: =IF(ISERROR(VLOOKUP(B44,Vandgennemstrømning!$T$41:$AH$265,15,FALSE)),"",VLOOKUP(B44,Vandgennemstrømning!$T$41:$AH$265,15,FALSE)) -> 
D45: =IF(ISERROR(VLOOKUP(B45,Vandgennemstrømning!$T$41:$AH$265,15,FALSE)),"",VLOOKUP(B45,Vandgennemstrømning!$T$41:$AH$265,15,FALSE)) -> 
D46: =IF(ISERROR(VLOOKUP(B46,Vandgennemstrømning!$T$41:$AH$265,15,FALSE)),"",VLOOKUP(B46,Vandgennemstrømning!$T$41:$AH$265,15,FALSE)) -> 
D47: =IF(ISERROR(VLOOKUP(B47,Vandgennemstrømning!$T$41:$AH$265,15,FALSE)),"",VLOOKUP(B47,Vandgennemstrømning!$T$41:$AH$265,15,FALSE)) -> 
D48: =IF(ISERROR(VLOOKUP(B48,Vandgennemstrømning!$T$41:$AH$265,15,FALSE)),"",VLOOKUP(B48,Vandgennemstrømning!$T$41:$AH$265,15,FALSE)) -> 
D49: =IF(ISERROR(VLOOKUP(B49,Vandgennemstrømning!$T$41:$AH$265,15,FALSE)),"",VLOOKUP(B49,Vandgennemstrømning!$T$41:$AH$265,15,FALSE)) -> 
D50: =IF(ISERROR(VLOOKUP(B50,Vandgennemstrømning!$T$41:$AH$265,15,FALSE)),"",VLOOKUP(B50,Vandgennemstrømning!$T$41:$AH$265,15,FALSE)) -> 
D51: =IF(ISERROR(VLOOKUP(B51,Vandgennemstrømning!$T$41:$AH$265,15,FALSE)),"",VLOOKUP(B51,Vandgennemstrømning!$T$41:$AH$265,15,FALSE)) -> 
D52: =IF(ISERROR(VLOOKUP(B52,Vandgennemstrømning!$T$41:$AH$265,15,FALSE)),"",VLOOKUP(B52,Vandgennemstrømning!$T$41:$AH$265,15,FALSE)) -> 
D53: =IF(ISERROR(VLOOKUP(B53,Vandgennemstrømning!$T$41:$AH$265,15,FALSE)),"",VLOOKUP(B53,Vandgennemstrømning!$T$41:$AH$265,15,FALSE)) -> 
D54: =IF(ISERROR(VLOOKUP(B54,Vandgennemstrømning!$T$41:$AH$265,15,FALSE)),"",VLOOKUP(B54,Vandgennemstrømning!$T$41:$AH$265,15,FALSE)) -> 
D55: =IF(ISERROR(VLOOKUP(B55,Vandgennemstrømning!$T$41:$AH$265,15,FALSE)),"",VLOOKUP(B55,Vandgennemstrømning!$T$41:$AH$265,15,FALSE)) -> 
D56: =IF(ISERROR(VLOOKUP(B56,Vandgennemstrømning!$T$41:$AH$265,15,FALSE)),"",VLOOKUP(B56,Vandgennemstrømning!$T$41:$AH$265,15,FALSE)) -> 
D57: =IF(ISERROR(VLOOKUP(B57,Vandgennemstrømning!$T$41:$AH$265,15,FALSE)),"",VLOOKUP(B57,Vandgennemstrømning!$T$41:$AH$265,15,FALSE)) -> 
D58: =IF(ISERROR(VLOOKUP(B58,Vandgennemstrømning!$T$41:$AH$265,15,FALSE)),"",VLOOKUP(B58,Vandgennemstrømning!$T$41:$AH$265,15,FALSE)) -> 
D59: =IF(ISERROR(VLOOKUP(B59,Vandgennemstrømning!$T$41:$AH$265,15,FALSE)),"",VLOOKUP(B59,Vandgennemstrømning!$T$41:$AH$265,15,FALSE)) -> 
D60: =IF(ISERROR(VLOOKUP(B60,Vandgennemstrømning!$T$41:$AH$265,15,FALSE)),"",VLOOKUP(B60,Vandgennemstrømning!$T$41:$AH$265,15,FALSE)) -> 
D61: =IF(ISERROR(VLOOKUP(B61,Vandgennemstrømning!$T$41:$AH$265,15,FALSE)),"",VLOOKUP(B61,Vandgennemstrømning!$T$41:$AH$265,15,FALSE)) -> 
D62: =IF(ISERROR(VLOOKUP(B62,Vandgennemstrømning!$T$41:$AH$265,15,FALSE)),"",VLOOKUP(B62,Vandgennemstrømning!$T$41:$AH$265,15,FALSE)) -> 
D63: =IF(ISERROR(VLOOKUP(B63,Vandgennemstrømning!$T$41:$AH$265,15,FALSE)),"",VLOOKUP(B63,Vandgennemstrømning!$T$41:$AH$265,15,FALSE)) -> 
D64: =IF(ISERROR(VLOOKUP(B64,Vandgennemstrømning!$T$41:$AH$265,15,FALSE)),"",VLOOKUP(B64,Vandgennemstrømning!$T$41:$AH$265,15,FALSE)) -> 
D65: =IF(ISERROR(VLOOKUP(B65,Vandgennemstrømning!$T$41:$AH$265,15,FALSE)),"",VLOOKUP(B65,Vandgennemstrømning!$T$41:$AH$265,15,FALSE)) -> 
D66: =IF(ISERROR(VLOOKUP(B66,Vandgennemstrømning!$T$41:$AH$265,15,FALSE)),"",VLOOKUP(B66,Vandgennemstrømning!$T$41:$AH$265,15,FALSE)) -> 
D67: =IF(ISERROR(VLOOKUP(B67,Vandgennemstrømning!$T$41:$AH$265,15,FALSE)),"",VLOOKUP(B67,Vandgennemstrømning!$T$41:$AH$265,15,FALSE)) -> 
D68: =IF(ISERROR(VLOOKUP(B68,Vandgennemstrømning!$T$41:$AH$265,15,FALSE)),"",VLOOKUP(B68,Vandgennemstrømning!$T$41:$AH$265,15,FALSE)) -> 
D69: =IF(ISERROR(VLOOKUP(B69,Vandgennemstrømning!$T$41:$AH$265,15,FALSE)),"",VLOOKUP(B69,Vandgennemstrømning!$T$41:$AH$265,15,FALSE)) -> 
D70: =IF(ISERROR(VLOOKUP(B70,Vandgennemstrømning!$T$41:$AH$265,15,FALSE)),"",VLOOKUP(B70,Vandgennemstrømning!$T$41:$AH$265,15,FALSE)) -> 
D71: =IF(ISERROR(VLOOKUP(B71,Vandgennemstrømning!$T$41:$AH$265,15,FALSE)),"",VLOOKUP(B71,Vandgennemstrømning!$T$41:$AH$265,15,FALSE)) -> 
D72: =IF(ISERROR(VLOOKUP(B72,Vandgennemstrømning!$T$41:$AH$265,15,FALSE)),"",VLOOKUP(B72,Vandgennemstrømning!$T$41:$AH$265,15,FALSE)) -> 
D73: =IF(ISERROR(VLOOKUP(B73,Vandgennemstrømning!$T$41:$AH$265,15,FALSE)),"",VLOOKUP(B73,Vandgennemstrømning!$T$41:$AH$265,15,FALSE)) -> 
D74: =IF(ISERROR(VLOOKUP(B74,Vandgennemstrømning!$T$41:$AH$265,15,FALSE)),"",VLOOKUP(B74,Vandgennemstrømning!$T$41:$AH$265,15,FALSE)) -> 
D75: =IF(ISERROR(VLOOKUP(B75,Vandgennemstrømning!$T$41:$AH$265,15,FALSE)),"",VLOOKUP(B75,Vandgennemstrømning!$T$41:$AH$265,15,FALSE)) -> 
D76: =IF(ISERROR(VLOOKUP(B76,Vandgennemstrømning!$T$41:$AH$265,15,FALSE)),"",VLOOKUP(B76,Vandgennemstrømning!$T$41:$AH$265,15,FALSE)) -> 
D77: =IF(ISERROR(VLOOKUP(B77,Vandgennemstrømning!$T$41:$AH$265,15,FALSE)),"",VLOOKUP(B77,Vandgennemstrømning!$T$41:$AH$265,15,FALSE)) -> 
D78: =IF(ISERROR(VLOOKUP(B78,Vandgennemstrømning!$T$41:$AH$265,15,FALSE)),"",VLOOKUP(B78,Vandgennemstrømning!$T$41:$AH$265,15,FALSE)) -> 
D79: =IF(ISERROR(VLOOKUP(B79,Vandgennemstrømning!$T$41:$AH$265,15,FALSE)),"",VLOOKUP(B79,Vandgennemstrømning!$T$41:$AH$265,15,FALSE)) -> 
D80: =IF(ISERROR(VLOOKUP(B80,Vandgennemstrømning!$T$41:$AH$265,15,FALSE)),"",VLOOKUP(B80,Vandgennemstrømning!$T$41:$AH$265,15,FALSE)) -> 
D81: =IF(ISERROR(VLOOKUP(B81,Vandgennemstrømning!$T$41:$AH$265,15,FALSE)),"",VLOOKUP(B81,Vandgennemstrømning!$T$41:$AH$265,15,FALSE)) -> 
D82: =IF(ISERROR(VLOOKUP(B82,Vandgennemstrømning!$T$41:$AH$265,15,FALSE)),"",VLOOKUP(B82,Vandgennemstrømning!$T$41:$AH$265,15,FALSE)) -> 
D83: =IF(ISERROR(VLOOKUP(B83,Vandgennemstrømning!$T$41:$AH$265,15,FALSE)),"",VLOOKUP(B83,Vandgennemstrømning!$T$41:$AH$265,15,FALSE)) -> 
D84: =IF(ISERROR(VLOOKUP(B84,Vandgennemstrømning!$T$41:$AH$265,15,FALSE)),"",VLOOKUP(B84,Vandgennemstrømning!$T$41:$AH$265,15,FALSE)) -> 
D85: =IF(ISERROR(VLOOKUP(B85,Vandgennemstrømning!$T$41:$AH$265,15,FALSE)),"",VLOOKUP(B85,Vandgennemstrømning!$T$41:$AH$265,15,FALSE)) -> 
D86: =IF(ISERROR(VLOOKUP(B86,Vandgennemstrømning!$T$41:$AH$265,15,FALSE)),"",VLOOKUP(B86,Vandgennemstrømning!$T$41:$AH$265,15,FALSE)) -> 
D87: =IF(ISERROR(VLOOKUP(B87,Vandgennemstrømning!$T$41:$AH$265,15,FALSE)),"",VLOOKUP(B87,Vandgennemstrømning!$T$41:$AH$265,15,FALSE)) -> 
D88: =IF(ISERROR(VLOOKUP(B88,Vandgennemstrømning!$T$41:$AH$265,15,FALSE)),"",VLOOKUP(B88,Vandgennemstrømning!$T$41:$AH$265,15,FALSE)) -> 
D89: =IF(ISERROR(VLOOKUP(B89,Vandgennemstrømning!$T$41:$AH$265,15,FALSE)),"",VLOOKUP(B89,Vandgennemstrømning!$T$41:$AH$265,15,FALSE)) -> 
D90: =IF(ISERROR(VLOOKUP(B90,Vandgennemstrømning!$T$41:$AH$265,15,FALSE)),"",VLOOKUP(B90,Vandgennemstrømning!$T$41:$AH$265,15,FALSE)) -> 
D91: =IF(ISERROR(VLOOKUP(B91,Vandgennemstrømning!$T$41:$AH$265,15,FALSE)),"",VLOOKUP(B91,Vandgennemstrømning!$T$41:$AH$265,15,FALSE)) -> 
D92: =IF(ISERROR(VLOOKUP(B92,Vandgennemstrømning!$T$41:$AH$265,15,FALSE)),"",VLOOKUP(B92,Vandgennemstrømning!$T$41:$AH$265,15,FALSE)) -> 
D93: =IF(ISERROR(VLOOKUP(B93,Vandgennemstrømning!$T$41:$AH$265,15,FALSE)),"",VLOOKUP(B93,Vandgennemstrømning!$T$41:$AH$265,15,FALSE)) -> 
D94: =IF(ISERROR(VLOOKUP(B94,Vandgennemstrømning!$T$41:$AH$265,15,FALSE)),"",VLOOKUP(B94,Vandgennemstrømning!$T$41:$AH$265,15,FALSE)) -> 
D95: =IF(ISERROR(VLOOKUP(B95,Vandgennemstrømning!$T$41:$AH$265,15,FALSE)),"",VLOOKUP(B95,Vandgennemstrømning!$T$41:$AH$265,15,FALSE)) -> 
D96: =IF(ISERROR(VLOOKUP(B96,Vandgennemstrømning!$T$41:$AH$265,15,FALSE)),"",VLOOKUP(B96,Vandgennemstrømning!$T$41:$AH$265,15,FALSE)) -> 
D97: =IF(ISERROR(VLOOKUP(B97,Vandgennemstrømning!$T$41:$AH$265,15,FALSE)),"",VLOOKUP(B97,Vandgennemstrømning!$T$41:$AH$265,15,FALSE)) -> 
D98: =IF(ISERROR(VLOOKUP(B98,Vandgennemstrømning!$T$41:$AH$265,15,FALSE)),"",VLOOKUP(B98,Vandgennemstrømning!$T$41:$AH$265,15,FALSE)) -> 
D99: =IF(ISERROR(VLOOKUP(B99,Vandgennemstrømning!$T$41:$AH$265,15,FALSE)),"",VLOOKUP(B99,Vandgennemstrømning!$T$41:$AH$265,15,FALSE)) -> 
D100: =IF(ISERROR(VLOOKUP(B100,Vandgennemstrømning!$T$41:$AH$265,15,FALSE)),"",VLOOKUP(B100,Vandgennemstrømning!$T$41:$AH$265,15,FALSE)) -> 
D101: =IF(ISERROR(VLOOKUP(B101,Vandgennemstrømning!$T$41:$AH$265,15,FALSE)),"",VLOOKUP(B101,Vandgennemstrømning!$T$41:$AH$265,15,FALSE)) -> 
D102: =IF(ISERROR(VLOOKUP(B102,Vandgennemstrømning!$T$41:$AH$265,15,FALSE)),"",VLOOKUP(B102,Vandgennemstrømning!$T$41:$AH$265,15,FALSE)) -> 
D103: =IF(ISERROR(VLOOKUP(B103,Vandgennemstrømning!$T$41:$AH$265,15,FALSE)),"",VLOOKUP(B103,Vandgennemstrømning!$T$41:$AH$265,15,FALSE)) -> 
D104: =IF(ISERROR(VLOOKUP(B104,Vandgennemstrømning!$T$41:$AH$265,15,FALSE)),"",VLOOKUP(B104,Vandgennemstrømning!$T$41:$AH$265,15,FALSE)) -> 
D105: =IF(ISERROR(VLOOKUP(B105,Vandgennemstrømning!$T$41:$AH$265,15,FALSE)),"",VLOOKUP(B105,Vandgennemstrømning!$T$41:$AH$265,15,FALSE)) -> 
D106: =IF(ISERROR(VLOOKUP(B106,Vandgennemstrømning!$T$41:$AH$265,15,FALSE)),"",VLOOKUP(B106,Vandgennemstrømning!$T$41:$AH$265,15,FALSE)) -> 
D107: =IF(ISERROR(VLOOKUP(B107,Vandgennemstrømning!$T$41:$AH$265,15,FALSE)),"",VLOOKUP(B107,Vandgennemstrømning!$T$41:$AH$265,15,FALSE)) -> 
D108: =IF(ISERROR(VLOOKUP(B108,Vandgennemstrømning!$T$41:$AH$265,15,FALSE)),"",VLOOKUP(B108,Vandgennemstrømning!$T$41:$AH$265,15,FALSE)) -> 
D109: =IF(ISERROR(VLOOKUP(B109,Vandgennemstrømning!$T$41:$AH$265,15,FALSE)),"",VLOOKUP(B109,Vandgennemstrømning!$T$41:$AH$265,15,FALSE)) -> 
D110: =IF(ISERROR(VLOOKUP(B110,Vandgennemstrømning!$T$41:$AH$265,15,FALSE)),"",VLOOKUP(B110,Vandgennemstrømning!$T$41:$AH$265,15,FALSE)) -> 
D111: =IF(ISERROR(VLOOKUP(B111,Vandgennemstrømning!$T$41:$AH$265,15,FALSE)),"",VLOOKUP(B111,Vandgennemstrømning!$T$41:$AH$265,15,FALSE)) -> 
D112: =IF(ISERROR(VLOOKUP(B112,Vandgennemstrømning!$T$41:$AH$265,15,FALSE)),"",VLOOKUP(B112,Vandgennemstrømning!$T$41:$AH$265,15,FALSE)) -> 
D113: =IF(ISERROR(VLOOKUP(B113,Vandgennemstrømning!$T$41:$AH$265,15,FALSE)),"",VLOOKUP(B113,Vandgennemstrømning!$T$41:$AH$265,15,FALSE)) -> 
D114: =IF(ISERROR(VLOOKUP(B114,Vandgennemstrømning!$T$41:$AH$265,15,FALSE)),"",VLOOKUP(B114,Vandgennemstrømning!$T$41:$AH$265,15,FALSE)) -> 
D115: =IF(ISERROR(VLOOKUP(B115,Vandgennemstrømning!$T$41:$AH$265,15,FALSE)),"",VLOOKUP(B115,Vandgennemstrømning!$T$41:$AH$265,15,FALSE)) -> 
D116: =IF(ISERROR(VLOOKUP(B116,Vandgennemstrømning!$T$41:$AH$265,15,FALSE)),"",VLOOKUP(B116,Vandgennemstrømning!$T$41:$AH$265,15,FALSE)) -> 
D117: =IF(ISERROR(VLOOKUP(B117,Vandgennemstrømning!$T$41:$AH$265,15,FALSE)),"",VLOOKUP(B117,Vandgennemstrømning!$T$41:$AH$265,15,FALSE)) -> 
D118: =IF(ISERROR(VLOOKUP(B118,Vandgennemstrømning!$T$41:$AH$265,15,FALSE)),"",VLOOKUP(B118,Vandgennemstrømning!$T$41:$AH$265,15,FALSE)) -> 
D119: =IF(ISERROR(VLOOKUP(B119,Vandgennemstrømning!$T$41:$AH$265,15,FALSE)),"",VLOOKUP(B119,Vandgennemstrømning!$T$41:$AH$265,15,FALSE)) -> 
D120: =IF(ISERROR(VLOOKUP(B120,Vandgennemstrømning!$T$41:$AH$265,15,FALSE)),"",VLOOKUP(B120,Vandgennemstrømning!$T$41:$AH$265,15,FALSE)) -> 
D121: =IF(ISERROR(VLOOKUP(B121,Vandgennemstrømning!$T$41:$AH$265,15,FALSE)),"",VLOOKUP(B121,Vandgennemstrømning!$T$41:$AH$265,15,FALSE)) -> 
D122: =IF(ISERROR(VLOOKUP(B122,Vandgennemstrømning!$T$41:$AH$265,15,FALSE)),"",VLOOKUP(B122,Vandgennemstrømning!$T$41:$AH$265,15,FALSE)) -> 
D123: =IF(ISERROR(VLOOKUP(B123,Vandgennemstrømning!$T$41:$AH$265,15,FALSE)),"",VLOOKUP(B123,Vandgennemstrømning!$T$41:$AH$265,15,FALSE)) -> 
D124: =IF(ISERROR(VLOOKUP(B124,Vandgennemstrømning!$T$41:$AH$265,15,FALSE)),"",VLOOKUP(B124,Vandgennemstrømning!$T$41:$AH$265,15,FALSE)) -> 
D125: =IF(ISERROR(VLOOKUP(B125,Vandgennemstrømning!$T$41:$AH$265,15,FALSE)),"",VLOOKUP(B125,Vandgennemstrømning!$T$41:$AH$265,15,FALSE)) -> 
D126: =IF(ISERROR(VLOOKUP(B126,Vandgennemstrømning!$T$41:$AH$265,15,FALSE)),"",VLOOKUP(B126,Vandgennemstrømning!$T$41:$AH$265,15,FALSE)) -> 
D127: =IF(ISERROR(VLOOKUP(B127,Vandgennemstrømning!$T$41:$AH$265,15,FALSE)),"",VLOOKUP(B127,Vandgennemstrømning!$T$41:$AH$265,15,FALSE)) -> 
D128: =IF(ISERROR(VLOOKUP(B128,Vandgennemstrømning!$T$41:$AH$265,15,FALSE)),"",VLOOKUP(B128,Vandgennemstrømning!$T$41:$AH$265,15,FALSE)) -> 
D129: =IF(ISERROR(VLOOKUP(B129,Vandgennemstrømning!$T$41:$AH$265,15,FALSE)),"",VLOOKUP(B129,Vandgennemstrømning!$T$41:$AH$265,15,FALSE)) -> 
D130: =IF(ISERROR(VLOOKUP(B130,Vandgennemstrømning!$T$41:$AH$265,15,FALSE)),"",VLOOKUP(B130,Vandgennemstrømning!$T$41:$AH$265,15,FALSE)) -> 
D131: =IF(ISERROR(VLOOKUP(B131,Vandgennemstrømning!$T$41:$AH$265,15,FALSE)),"",VLOOKUP(B131,Vandgennemstrømning!$T$41:$AH$265,15,FALSE)) -> 
D132: =IF(ISERROR(VLOOKUP(B132,Vandgennemstrømning!$T$41:$AH$265,15,FALSE)),"",VLOOKUP(B132,Vandgennemstrømning!$T$41:$AH$265,15,FALSE)) -> 
D133: =IF(ISERROR(VLOOKUP(B133,Vandgennemstrømning!$T$41:$AH$265,15,FALSE)),"",VLOOKUP(B133,Vandgennemstrømning!$T$41:$AH$265,15,FALSE)) -> 
D134: =IF(ISERROR(VLOOKUP(B134,Vandgennemstrømning!$T$41:$AH$265,15,FALSE)),"",VLOOKUP(B134,Vandgennemstrømning!$T$41:$AH$265,15,FALSE)) -> 
D135: =IF(ISERROR(VLOOKUP(B135,Vandgennemstrømning!$T$41:$AH$265,15,FALSE)),"",VLOOKUP(B135,Vandgennemstrømning!$T$41:$AH$265,15,FALSE)) -> 
D136: =IF(ISERROR(VLOOKUP(B136,Vandgennemstrømning!$T$41:$AH$265,15,FALSE)),"",VLOOKUP(B136,Vandgennemstrømning!$T$41:$AH$265,15,FALSE)) -> 
D137: =IF(ISERROR(VLOOKUP(B137,Vandgennemstrømning!$T$41:$AH$265,15,FALSE)),"",VLOOKUP(B137,Vandgennemstrømning!$T$41:$AH$265,15,FALSE)) -> 
D138: =IF(ISERROR(VLOOKUP(B138,Vandgennemstrømning!$T$41:$AH$265,15,FALSE)),"",VLOOKUP(B138,Vandgennemstrømning!$T$41:$AH$265,15,FALSE)) -> 
D139: =IF(ISERROR(VLOOKUP(B139,Vandgennemstrømning!$T$41:$AH$265,15,FALSE)),"",VLOOKUP(B139,Vandgennemstrømning!$T$41:$AH$265,15,FALSE)) -> 
D140: =IF(ISERROR(VLOOKUP(B140,Vandgennemstrømning!$T$41:$AH$265,15,FALSE)),"",VLOOKUP(B140,Vandgennemstrømning!$T$41:$AH$265,15,FALSE)) -> 
D141: =IF(ISERROR(VLOOKUP(B141,Vandgennemstrømning!$T$41:$AH$265,15,FALSE)),"",VLOOKUP(B141,Vandgennemstrømning!$T$41:$AH$265,15,FALSE)) -> 
D142: =IF(ISERROR(VLOOKUP(B142,Vandgennemstrømning!$T$41:$AH$265,15,FALSE)),"",VLOOKUP(B142,Vandgennemstrømning!$T$41:$AH$265,15,FALSE)) -> 
D143: =IF(ISERROR(VLOOKUP(B143,Vandgennemstrømning!$T$41:$AH$265,15,FALSE)),"",VLOOKUP(B143,Vandgennemstrømning!$T$41:$AH$265,15,FALSE)) -> 
D144: =IF(ISERROR(VLOOKUP(B144,Vandgennemstrømning!$T$41:$AH$265,15,FALSE)),"",VLOOKUP(B144,Vandgennemstrømning!$T$41:$AH$265,15,FALSE)) -> 
D145: =IF(ISERROR(VLOOKUP(B145,Vandgennemstrømning!$T$41:$AH$265,15,FALSE)),"",VLOOKUP(B145,Vandgennemstrømning!$T$41:$AH$265,15,FALSE)) -> 
D146: =IF(ISERROR(VLOOKUP(B146,Vandgennemstrømning!$T$41:$AH$265,15,FALSE)),"",VLOOKUP(B146,Vandgennemstrømning!$T$41:$AH$265,15,FALSE)) -> 
D147: =IF(ISERROR(VLOOKUP(B147,Vandgennemstrømning!$T$41:$AH$265,15,FALSE)),"",VLOOKUP(B147,Vandgennemstrømning!$T$41:$AH$265,15,FALSE)) -> 
D148: =IF(ISERROR(VLOOKUP(B148,Vandgennemstrømning!$T$41:$AH$265,15,FALSE)),"",VLOOKUP(B148,Vandgennemstrømning!$T$41:$AH$265,15,FALSE)) -> 
D149: =IF(ISERROR(VLOOKUP(B149,Vandgennemstrømning!$T$41:$AH$265,15,FALSE)),"",VLOOKUP(B149,Vandgennemstrømning!$T$41:$AH$265,15,FALSE)) -> 
D150: =IF(ISERROR(VLOOKUP(B150,Vandgennemstrømning!$T$41:$AH$265,15,FALSE)),"",VLOOKUP(B150,Vandgennemstrømning!$T$41:$AH$265,15,FALSE)) -> 
D151: =IF(ISERROR(VLOOKUP(B151,Vandgennemstrømning!$T$41:$AH$265,15,FALSE)),"",VLOOKUP(B151,Vandgennemstrømning!$T$41:$AH$265,15,FALSE)) -> 
D152: =IF(ISERROR(VLOOKUP(B152,Vandgennemstrømning!$T$41:$AH$265,15,FALSE)),"",VLOOKUP(B152,Vandgennemstrømning!$T$41:$AH$265,15,FALSE)) -> 
D153: =IF(ISERROR(VLOOKUP(B153,Vandgennemstrømning!$T$41:$AH$265,15,FALSE)),"",VLOOKUP(B153,Vandgennemstrømning!$T$41:$AH$265,15,FALSE)) -> 
D154: =IF(ISERROR(VLOOKUP(B154,Vandgennemstrømning!$T$41:$AH$265,15,FALSE)),"",VLOOKUP(B154,Vandgennemstrømning!$T$41:$AH$265,15,FALSE)) -> 
D155: =IF(ISERROR(VLOOKUP(B155,Vandgennemstrømning!$T$41:$AH$265,15,FALSE)),"",VLOOKUP(B155,Vandgennemstrømning!$T$41:$AH$265,15,FALSE)) -> 
D156: =IF(ISERROR(VLOOKUP(B156,Vandgennemstrømning!$T$41:$AH$265,15,FALSE)),"",VLOOKUP(B156,Vandgennemstrømning!$T$41:$AH$265,15,FALSE)) -> 
D157: =IF(ISERROR(VLOOKUP(B157,Vandgennemstrømning!$T$41:$AH$265,15,FALSE)),"",VLOOKUP(B157,Vandgennemstrømning!$T$41:$AH$265,15,FALSE)) -> 
D158: =IF(ISERROR(VLOOKUP(B158,Vandgennemstrømning!$T$41:$AH$265,15,FALSE)),"",VLOOKUP(B158,Vandgennemstrømning!$T$41:$AH$265,15,FALSE)) -> 
D159: =IF(ISERROR(VLOOKUP(B159,Vandgennemstrømning!$T$41:$AH$265,15,FALSE)),"",VLOOKUP(B159,Vandgennemstrømning!$T$41:$AH$265,15,FALSE)) -> 
D160: =IF(ISERROR(VLOOKUP(B160,Vandgennemstrømning!$T$41:$AH$265,15,FALSE)),"",VLOOKUP(B160,Vandgennemstrømning!$T$41:$AH$265,15,FALSE)) -> 
D161: =IF(ISERROR(VLOOKUP(B161,Vandgennemstrømning!$T$41:$AH$265,15,FALSE)),"",VLOOKUP(B161,Vandgennemstrømning!$T$41:$AH$265,15,FALSE)) -> 
D162: =IF(ISERROR(VLOOKUP(B162,Vandgennemstrømning!$T$41:$AH$265,15,FALSE)),"",VLOOKUP(B162,Vandgennemstrømning!$T$41:$AH$265,15,FALSE)) -> 
D163: =IF(ISERROR(VLOOKUP(B163,Vandgennemstrømning!$T$41:$AH$265,15,FALSE)),"",VLOOKUP(B163,Vandgennemstrømning!$T$41:$AH$265,15,FALSE)) -> 
D164: =IF(ISERROR(VLOOKUP(B164,Vandgennemstrømning!$T$41:$AH$265,15,FALSE)),"",VLOOKUP(B164,Vandgennemstrømning!$T$41:$AH$265,15,FALSE)) -> 
D165: =IF(ISERROR(VLOOKUP(B165,Vandgennemstrømning!$T$41:$AH$265,15,FALSE)),"",VLOOKUP(B165,Vandgennemstrømning!$T$41:$AH$265,15,FALSE)) -> 
D166: =IF(ISERROR(VLOOKUP(B166,Vandgennemstrømning!$T$41:$AH$265,15,FALSE)),"",VLOOKUP(B166,Vandgennemstrømning!$T$41:$AH$265,15,FALSE)) -> 
D167: =IF(ISERROR(VLOOKUP(B167,Vandgennemstrømning!$T$41:$AH$265,15,FALSE)),"",VLOOKUP(B167,Vandgennemstrømning!$T$41:$AH$265,15,FALSE)) -> 
D168: =IF(ISERROR(VLOOKUP(B168,Vandgennemstrømning!$T$41:$AH$265,15,FALSE)),"",VLOOKUP(B168,Vandgennemstrømning!$T$41:$AH$265,15,FALSE)) -> 
D169: =IF(ISERROR(VLOOKUP(B169,Vandgennemstrømning!$T$41:$AH$265,15,FALSE)),"",VLOOKUP(B169,Vandgennemstrømning!$T$41:$AH$265,15,FALSE)) -> 
D170: =IF(ISERROR(VLOOKUP(B170,Vandgennemstrømning!$T$41:$AH$265,15,FALSE)),"",VLOOKUP(B170,Vandgennemstrømning!$T$41:$AH$265,15,FALSE)) -> 
D171: =IF(ISERROR(VLOOKUP(B171,Vandgennemstrømning!$T$41:$AH$265,15,FALSE)),"",VLOOKUP(B171,Vandgennemstrømning!$T$41:$AH$265,15,FALSE)) -> 
D172: =IF(ISERROR(VLOOKUP(B172,Vandgennemstrømning!$T$41:$AH$265,15,FALSE)),"",VLOOKUP(B172,Vandgennemstrømning!$T$41:$AH$265,15,FALSE)) -> 
D173: =IF(ISERROR(VLOOKUP(B173,Vandgennemstrømning!$T$41:$AH$265,15,FALSE)),"",VLOOKUP(B173,Vandgennemstrømning!$T$41:$AH$265,15,FALSE)) -> 
D174: =IF(ISERROR(VLOOKUP(B174,Vandgennemstrømning!$T$41:$AH$265,15,FALSE)),"",VLOOKUP(B174,Vandgennemstrømning!$T$41:$AH$265,15,FALSE)) -> 
D175: =IF(ISERROR(VLOOKUP(B175,Vandgennemstrømning!$T$41:$AH$265,15,FALSE)),"",VLOOKUP(B175,Vandgennemstrømning!$T$41:$AH$265,15,FALSE)) -> 
D176: =IF(ISERROR(VLOOKUP(B176,Vandgennemstrømning!$T$41:$AH$265,15,FALSE)),"",VLOOKUP(B176,Vandgennemstrømning!$T$41:$AH$265,15,FALSE)) -> 
D177: =IF(ISERROR(VLOOKUP(B177,Vandgennemstrømning!$T$41:$AH$265,15,FALSE)),"",VLOOKUP(B177,Vandgennemstrømning!$T$41:$AH$265,15,FALSE)) -> 
D178: =IF(ISERROR(VLOOKUP(B178,Vandgennemstrømning!$T$41:$AH$265,15,FALSE)),"",VLOOKUP(B178,Vandgennemstrømning!$T$41:$AH$265,15,FALSE)) -> 
D179: =IF(ISERROR(VLOOKUP(B179,Vandgennemstrømning!$T$41:$AH$265,15,FALSE)),"",VLOOKUP(B179,Vandgennemstrømning!$T$41:$AH$265,15,FALSE)) -> 
D180: =IF(ISERROR(VLOOKUP(B180,Vandgennemstrømning!$T$41:$AH$265,15,FALSE)),"",VLOOKUP(B180,Vandgennemstrømning!$T$41:$AH$265,15,FALSE)) -> 
D181: =IF(ISERROR(VLOOKUP(B181,Vandgennemstrømning!$T$41:$AH$265,15,FALSE)),"",VLOOKUP(B181,Vandgennemstrømning!$T$41:$AH$265,15,FALSE)) -> 
D182: =IF(ISERROR(VLOOKUP(B182,Vandgennemstrømning!$T$41:$AH$265,15,FALSE)),"",VLOOKUP(B182,Vandgennemstrømning!$T$41:$AH$265,15,FALSE)) -> 
D183: =IF(ISERROR(VLOOKUP(B183,Vandgennemstrømning!$T$41:$AH$265,15,FALSE)),"",VLOOKUP(B183,Vandgennemstrømning!$T$41:$AH$265,15,FALSE)) -> 
D184: =IF(ISERROR(VLOOKUP(B184,Vandgennemstrømning!$T$41:$AH$265,15,FALSE)),"",VLOOKUP(B184,Vandgennemstrømning!$T$41:$AH$265,15,FALSE)) -> 
D185: =IF(ISERROR(VLOOKUP(B185,Vandgennemstrømning!$T$41:$AH$265,15,FALSE)),"",VLOOKUP(B185,Vandgennemstrømning!$T$41:$AH$265,15,FALSE)) -> 
D186: =IF(ISERROR(VLOOKUP(B186,Vandgennemstrømning!$T$41:$AH$265,15,FALSE)),"",VLOOKUP(B186,Vandgennemstrømning!$T$41:$AH$265,15,FALSE)) -> 
D187: =IF(ISERROR(VLOOKUP(B187,Vandgennemstrømning!$T$41:$AH$265,15,FALSE)),"",VLOOKUP(B187,Vandgennemstrømning!$T$41:$AH$265,15,FALSE)) -> 
D188: =IF(ISERROR(VLOOKUP(B188,Vandgennemstrømning!$T$41:$AH$265,15,FALSE)),"",VLOOKUP(B188,Vandgennemstrømning!$T$41:$AH$265,15,FALSE)) -> 
D189: =IF(ISERROR(VLOOKUP(B189,Vandgennemstrømning!$T$41:$AH$265,15,FALSE)),"",VLOOKUP(B189,Vandgennemstrømning!$T$41:$AH$265,15,FALSE)) -> 
D190: =IF(ISERROR(VLOOKUP(B190,Vandgennemstrømning!$T$41:$AH$265,15,FALSE)),"",VLOOKUP(B190,Vandgennemstrømning!$T$41:$AH$265,15,FALSE)) -> 
D191: =IF(ISERROR(VLOOKUP(B191,Vandgennemstrømning!$T$41:$AH$265,15,FALSE)),"",VLOOKUP(B191,Vandgennemstrømning!$T$41:$AH$265,15,FALSE)) -> 
D192: =IF(ISERROR(VLOOKUP(B192,Vandgennemstrømning!$T$41:$AH$265,15,FALSE)),"",VLOOKUP(B192,Vandgennemstrømning!$T$41:$AH$265,15,FALSE)) -> 
D193: =IF(ISERROR(VLOOKUP(B193,Vandgennemstrømning!$T$41:$AH$265,15,FALSE)),"",VLOOKUP(B193,Vandgennemstrømning!$T$41:$AH$265,15,FALSE)) -> 
D194: =IF(ISERROR(VLOOKUP(B194,Vandgennemstrømning!$T$41:$AH$265,15,FALSE)),"",VLOOKUP(B194,Vandgennemstrømning!$T$41:$AH$265,15,FALSE)) -> 
D195: =IF(ISERROR(VLOOKUP(B195,Vandgennemstrømning!$T$41:$AH$265,15,FALSE)),"",VLOOKUP(B195,Vandgennemstrømning!$T$41:$AH$265,15,FALSE)) -> 
D196: =IF(ISERROR(VLOOKUP(B196,Vandgennemstrømning!$T$41:$AH$265,15,FALSE)),"",VLOOKUP(B196,Vandgennemstrømning!$T$41:$AH$265,15,FALSE)) -> 
D197: =IF(ISERROR(VLOOKUP(B197,Vandgennemstrømning!$T$41:$AH$265,15,FALSE)),"",VLOOKUP(B197,Vandgennemstrømning!$T$41:$AH$265,15,FALSE)) -> 
D198: =IF(ISERROR(VLOOKUP(B198,Vandgennemstrømning!$T$41:$AH$265,15,FALSE)),"",VLOOKUP(B198,Vandgennemstrømning!$T$41:$AH$265,15,FALSE)) -> 
D199: =IF(ISERROR(VLOOKUP(B199,Vandgennemstrømning!$T$41:$AH$265,15,FALSE)),"",VLOOKUP(B199,Vandgennemstrømning!$T$41:$AH$265,15,FALSE)) -> 
D200: =IF(ISERROR(VLOOKUP(B200,Vandgennemstrømning!$T$41:$AH$265,15,FALSE)),"",VLOOKUP(B200,Vandgennemstrømning!$T$41:$AH$265,15,FALSE)) -> 
D201: =IF(ISERROR(VLOOKUP(B201,Vandgennemstrømning!$T$41:$AH$265,15,FALSE)),"",VLOOKUP(B201,Vandgennemstrømning!$T$41:$AH$265,15,FALSE)) -> 
... 7 more rows

Sheet Biomassehøst
B1: Biomassehøst
B3: Antal år med afhøstning (0-10)
B5: Prøvefelt | C5: Areal (ha) | D5: Reduktion i PBD-pulje (kg)
D6: =IF(OR(C6="",$D$3=""),"",$D$3*3*C6) -> 
D7: =IF(OR(C7="",$D$3=""),"",$D$3*3*C7) -> 
D71: =IF(OR(C71="",$D$3=""),"",$D$3*3*C71) -> 
D135: =IF(OR(C135="",$D$3=""),"",$D$3*3*C135) -> 
D199: =IF(OR(C199="",$D$3=""),"",$D$3*3*C199) -> 

Sheet DMI
A1: DMI10_NY | B1: DMI10 | C1: nedbor_kor | D1: sand_pct | E1: dyrk_pct | F1: Georegion | G1: befast_pct | H1: clay_pct | I1: potfordampning | J1: S_PPmodel | K1: EM_Ppmodel | L1: A_PPmodel
A2: 627_44 | B2: 10001 | C2: 968.12 | D2: 73.98198849 | E2: 41.4702361 | F2: 1 | G2: 11.91400397 | H2: 3.928828866 | I2: 614.87 | J2: 0 | K2: 4.674830364 | L2: 40.91837413
A3: 626_44 | B3: 10002 | C3: 1023.73 | D3: 26.18498514 | E3: 74.76368248 | F3: 1 | G3: 6.209108767 | H3: 10.89502644 | I3: 614.87 | J3: 53.27709925 | K3: 4.067027438 | L3: 73.31421511 | M3: kol | N3: list | O3: list_DMI | P3: nedbor_kor | Q3: potfordampning | R3: ler_pct | S3: sand_pct | T3: befæst_pct | U3: georeg | V3: S_PPmodel | W3: EM_Ppmodel | X3: A_PPmodel | Z3: kol | AA3: list | AB3: list_DMI | AC3: nedbor_kor | AD3: potfordampning | AE3: ler_pct | AF3: befæst_pct | AG3: georeg
A4: 625_44 | B4: 10003 | C4: 1029.34 | D4: 72.11934642 | E4: 74.64364585 | F4: 3 | G4: 4.582202883 | H4: 7.289064028 | I4: 615.05 | J4: 2.651102903 | K4: 6.179869375 | L4: 66.99969236 | M4: C | N4: =Vandgennemstrømning!$C$22 -> 627_55 | O4: =IF(COUNTIF($B$2:$B$610,N4),N4,VLOOKUP(N4,$A$2:$B$610,2,FALSE)) -> 10278 | P4: =VLOOKUP($O4,$B$2:$C$610,2,FALSE) -> 845.29 | Q4: =VLOOKUP($O4,$B$2:$I$610,8,FALSE) -> 593.67 | R4: =VLOOKUP($O4,$B$2:$H$610,7,FALSE) -> 5.207185909 | S4: =VLOOKUP($O4,$B$2:$D$610,3,FALSE) -> 92.32506415 | T4: =VLOOKUP($O4,$B$2:$G$610,6,FALSE) -> 8.214394491 | U4: =VLOOKUP($O4,$B$2:$F$610,5,FALSE) -> 4 | V4: =VLOOKUP($O4,$B$2:$K$610,9,FALSE) -> 28.10456648 | W4: =VLOOKUP($O4,$B$2:$L$610,10,FALSE) -> 4.907853084 | X4: =VLOOKUP($O4,$B$2:$L$610,11,FALSE) -> 63.8164359 | Z4: L | AA4: =Vandgennemstrømning!L22 -> 627_55 | AB4: =IF(COUNTIF($B$2:$B$610,AA4),AA4,VLOOKUP(AA4,$A$2:$B$610,2,FALSE)) -> 10278 | AC4: =VLOOKUP($AB4,$B$2:$C$610,2,FALSE) -> 845.29 | AD4: =VLOOKUP($AB4,$B$2:$I$610,8,FALSE) -> 593.67 | AE4: =VLOOKUP($AB4,$B$2:$H$610,7,FALSE) -> 5.207185909 | AF4: =VLOOKUP($AB4,$B$2:$G$610,6,FALSE) -> 8.214394491 | AG4: =VLOOKUP($AB4,$B$2:$F$610,5,FALSE) -> 4
A5: 624_44 | B5: 10004 | C5: 1018.37 | D5: 92.31719443 | E5: 40.24763847 | F5: 3 | G5: 14.2423324 | H5: 3.791559462 | I5: 615.05 | J5: 0 | K5: 13.18024165 | L5: 30.38709567 | M5: D | N5: =Vandgennemstrømning!$D$22 -> 0 | O5: =IF(COUNTIF($B$2:$B$610,N5),N5,VLOOKUP(N5,$A$2:$B$610,2,FALSE)) ->  | P5: =VLOOKUP($O5,$B$2:$C$610,2,FALSE) ->  | Q5: =VLOOKUP($O5,$B$2:$I$610,8,FALSE) ->  | R5: =VLOOKUP($O5,$B$2:$H$610,7,FALSE) ->  | S5: =VLOOKUP($O5,$B$2:$D$610,3,FALSE) ->  | T5: =VLOOKUP($O5,$B$2:$G$610,6,FALSE) ->  | U5: =VLOOKUP($O5,$B$2:$F$610,5,FALSE) ->  | V5: =VLOOKUP($O5,$B$2:$K$610,9,FALSE) ->  | W5: =VLOOKUP($O5,$B$2:$L$610,10,FALSE) ->  | X5: =VLOOKUP($O5,$B$2:$L$610,11,FALSE) ->  | Z5: M | AA5: =Vandgennemstrømning!M22 -> 0 | AB5: =IF(COUNTIF($B$2:$B$610,AA5),AA5,VLOOKUP(AA5,$A$2:$B$610,2,FALSE)) ->  | AC5: =VLOOKUP($AB5,$B$2:$C$610,2,FALSE) ->  | AD5: =VLOOKUP($AB5,$B$2:$I$610,8,FALSE) ->  | AE5: =VLOOKUP($AB5,$B$2:$H$610,7,FALSE) ->  | AF5: =VLOOKUP($AB5,$B$2:$G$610,6,FALSE) ->  | AG5: =VLOOKUP($AB5,$B$2:$F$610,5,FALSE) -> 
A6: 623_44 | B6: 10005 | C6: 1012.86 | D6: 84.55515098 | E6: 44.14162734 | F6: 3 | G6: 14.24446166 | H6: 4.618174463 | I6: 620.17 | J6: 0.9182241081 | K6: 2.010000408 | L6: 39.00290555 | M6: E | N6: =Vandgennemstrømning!$E$22 -> 0 | Z6: N | AA6: =Vandgennemstrømning!N22 -> 0
A7: 622_44 | B7: 10006 | C7: 1014.44 | D7: 68.78505007 | E7: 50.94256462 | F7: 3 | G7: 8.48636895 | H7: 6.952545042 | I7: 620.17 | J7: 10.75944764 | K7: 8.004466393 | L7: 50.49002122 | M7: F | N7: =Vandgennemstrømning!$F$22 -> 0 | Z7: L | AA7: =Vandgennemstrømning!L23 -> 0
A8: 621_44 | B8: 10007 | C8: 1003.38 | D8: 86.34061129 | E8: 34.29911199 | F8: 3 | G8: 12.87368738 | H8: 4.593835122 | I8: 628.91 | J8: 9.399099906 | K8: 6.473683659 | L8: 35.48602246 | M8: G | N8: =Vandgennemstrømning!$G$22 -> 0 | Z8: M | AA8: =Vandgennemstrømning!M23 -> 0
A9: 620_44 | B9: 10008 | C9: 1003.31 | D9: 98.58501563 | E9: 13.15844263 | F9: 3 | G9: 24.54161792 | H9: 2.641900694 | I9: 628.91 | J9: 0 | K9: 3.755530412 | L9: 11.12014338 | M9: H | N9: =Vandgennemstrømning!$H$22 -> 0 | Z9: N | AA9: =Vandgennemstrømning!N23 -> 0
A10: 619_44 | B10: 10009 | C10: 1011.79 | D10: 97.40927332 | E10: 15.33385053 | F10: 3 | G10: 8.81168343 | H10: 3.792243844 | I10: 626.83 | J10: 1.505282907 | K10: 12.81920824 | L10: 10.95337225 | M10: I | N10: =Vandgennemstrømning!$I$22 -> 0 | Z10: L | AA10: =Vandgennemstrømning!L24 -> 0
A11: 618_44 | B11: 10010 | C11: 1033.93 | D11: 98.60350359 | E11: 7.255650761 | F11: 3 | G11: 5.084733008 | H11: 3.024704954 | I11: 626.83 | J11: 1.518746076 | K11: 19.324698 | L11: 3.946733903 | M11: J | N11: =Vandgennemstrømning!$J$22 -> 0 | Z11: M | AA11: =Vandgennemstrømning!M23 -> 0
A12: 617_44 | B12: 10011 | C12: 1052.68 | D12: 98.30351671 | E12: 4.564967413 | F12: 3 | G12: 4.655026032 | H12: 3.001486503 | I12: 626.26 | J12: 0 | K12: 18.27974315 | L12: 2.645868072 | M12: C | N12: =Vandgennemstrømning!$C$23 -> 0 | Z12: N | AA12: =Vandgennemstrømning!N23 -> 0
A13: 616_44 | B13: 10012 | C13: 1038.32 | D13: 98.97059412 | E13: 4.705301539 | F13: 3 | G13: 5.667214434 | H13: 1.542091161 | I13: 626.26 | J13: 0 | K13: 10.10354601 | L13: 1.19581978 | M13: D | N13: =Vandgennemstrømning!$D$23 -> 0
A14: 615_44 | B14: 10013 | C14: 1046.53 | D14: 92.86575274 | E14: 4.60960981 | F14: 3 | G14: 10.49303433 | H14: 2.68584146 | I14: 641.26 | J14: 0 | K14: 9.995334503 | L14: 1.947672449 | M14: E | N14: =Vandgennemstrømning!$E$23 -> 0 | AA14: average | AC14: =AVERAGE(IF(ISERROR(AC4:AC12),"",AC4:AC12)) -> 845.29 | AD14: =AVERAGE(IF(ISERROR(AD4:AD12),"",AD4:AD12)) -> 593.67 | AE14: =AVERAGE(IF(ISERROR(AE4:AE12),"",AE4:AE12)) -> 5.207185909 | AF14: =AVERAGE(IF(ISERROR(AF4:AF12),"",AF4:AF12)) -> 8.214394491 | AG14: =IFERROR(MODE(IF(ISERROR(AG4:AG12),"",AG4:AG12)),INDEX(AG4:AG12,MATCH(TRUE,ISNUMBER(AG4:AG12),0))) -> 4 | AH14: hvis der kun er 2 DMI grids med hver sin georegion, vælges den første på listen
A15: 631_45 | B15: 10014 | C15: 1016.74 | D15: 99.69296455 | E15: 0 | F15: 1 | G15: 0 | H15: 1.59240506 | I15: 607.35 | J15: 0 | K15: 0 | L15: 0 | M15: F | N15: =Vandgennemstrømning!$F$23 -> 0
A16: 630_45 | B16: 10015 | C16: 987.15 | D16: 98.01197951 | E16: 0.07975263867 | F16: 1 | G16: 2.64923116 | H16: 1.654213125 | I16: 607.35 | J16: 0 | K16: 9.147146749 | L16: 0.1358399361 | M16: G | N16: =Vandgennemstrømning!$G$23 -> 0
A17: 629_45 | B17: 10016 | C17: 950.55 | D17: 73.05095544 | E17: 40.13448753 | F17: 1 | G17: 7.421102436 | H17: 5.23259722 | I17: 610.41 | J17: 39.07555882 | K17: 8.048145351 | L17: 36.37010633 | M17: H | N17: =Vandgennemstrømning!$H$23 -> 0
A18: 628_45 | B18: 10017 | C18: 928.85 | D18: 41.11433849 | E18: 40.66217284 | F18: 1 | G18: 11.20816142 | H18: 7.64297072 | I18: 610.41 | J18: 35.31540064 | K18: 22.07769535 | L18: 35.91321963 | M18: I | N18: =Vandgennemstrømning!$I$23 -> 0
A19: 627_45 | B19: 10018 | C19: 967.1 | D19: 35.10752981 | E19: 64.72394428 | F19: 1 | G19: 8.974705845 | H19: 7.826018818 | I19: 614.87 | J19: 3.409037546 | K19: 7.626818427 | L19: 66.08404068 | M19: J | N19: =Vandgennemstrømning!$J$23 -> 0
A20: 626_45 | B20: 10019 | C20: 1010.3 | D20: 30.43326177 | E20: 70.5147736 | F20: 1 | G20: 11.48184743 | H20: 10.30272152 | I20: 614.87 | J20: 2.620455139 | K20: 1.520714494 | L20: 71.48769205 | M20: C | N20: =Vandgennemstrømning!$C$24 -> 0
A21: 625_45 | B21: 10020 | C21: 1039.17 | D21: 86.73738567 | E21: 62.16969478 | F21: 3 | G21: 6.446300057 | H21: 4.367603025 | I21: 615.05 | J21: 2.736831689 | K21: 4.374000131 | L21: 61.28240018 | M21: D | N21: =Vandgennemstrømning!$D$24 -> 0
A22: 624_45 | B22: 10021 | C22: 1045.79 | D22: 85.12984659 | E22: 60.24245147 | F22: 3 | G22: 8.475768332 | H22: 4.284153794 | I22: 615.05 | J22: 0.1938464623 | K22: 9.192210025 | L22: 62.64457193 | M22: E | N22: =Vandgennemstrømning!$E$24 -> 0
A23: 623_45 | B23: 10022 | C23: 1043.49 | D23: 75.37537725 | E23: 63.61800953 | F23: 3 | G23: 9.296668028 | H23: 5.789600595 | I23: 620.17 | J23: 0.04227248617 | K23: 3.258928961 | L23: 65.99498206 | M23: F | N23: =Vandgennemstrømning!$F$24 -> 0
A24: 622_45 | B24: 10023 | C24: 1064.35 | D24: 66.44040811 | E24: 60.85670627 | F24: 3 | G24: 7.276200099 | H24: 6.228722811 | I24: 620.17 | J24: 0.1368046792 | K24: 4.4457 | L24: 61.72970038 | M24: G | N24: =Vandgennemstrømning!$G$24 -> 0
A25: 621_45 | B25: 10024 | C25: 1049.42 | D25: 72.53825189 | E25: 59.27333992 | F25: 3 | G25: 18.86174854 | H25: 5.468291675 | I25: 628.91 | J25: 0.2960529749 | K25: 4.064600027 | L25: 62.28046371 | M25: H | N25: =Vandgennemstrømning!$H$24 -> 0
A26: 620_45 | B26: 10025 | C26: 1022.13 | D26: 66.54681585 | E26: 66.87043069 | F26: 3 | G26: 10.44891401 | H26: 6.523959861 | I26: 628.91 | J26: 0 | K26: 18.42997358 | L26: 68.21494179 | M26: I | N26: =Vandgennemstrømning!$I$24 -> 0
A27: 619_45 | B27: 10026 | C27: 1019.63 | D27: 34.40383313 | E27: 61.79232493 | F27: 3 | G27: 5.67907477 | H27: 16.66438807 | I27: 626.83 | J27: 1.847161195 | K27: 84.44155021 | L27: 30.74586791 | M27: J | N27: =Vandgennemstrømning!$J$24 -> 0
A28: 618_45 | B28: 10027 | C28: 1042.28 | D28: 79.16562149 | E28: 61.29452109 | F28: 3 | G28: 12.51549075 | H28: 7.303461625 | I28: 626.83 | J28: 2.806470737 | K28: 4.384008382 | L28: 59.67560396
A29: 617_45 | B29: 10028 | C29: 1060.73 | D29: 87.31831445 | E29: 60.98667573 | F29: 3 | G29: 7.231699856 | H29: 4.522962142 | I29: 626.26 | J29: 30.31233642 | K29: 8.939100358 | L29: 51.8009995 | O29: average | P29: =AVERAGE(IF(ISERROR(P4:P27),"",P4:P27)) -> 845.29 | Q29: =AVERAGE(IF(ISERROR(Q4:Q27),"",Q4:Q27)) -> 593.67 | R29: =AVERAGE(IF(ISERROR(R4:R27),"",R4:R27)) -> 5.207185909 | S29: =AVERAGE(IF(ISERROR(S4:S27),"",S4:S27)) -> 92.32506415 | T29: =AVERAGE(IF(ISERROR(T4:T27),"",T4:T27)) -> 8.214394491 | U29: =IFERROR(MODE(IF(ISERROR(U4:U27),"",U4:U27)),INDEX(U4:U27,MATCH(TRUE,ISNUMBER(U4:U27),0))) -> 4 | V29: =AVERAGE(IF(ISERROR(V4:V27),"",V4:V27)) -> 28.10456648 | W29: =AVERAGE(IF(ISERROR(W4:W27),"",W4:W27)) -> 4.907853084 | X29: =AVERAGE(IF(ISERROR(X4:X27),"",X4:X27)) -> 63.8164359
A30: 616_45 | B30: 10029 | C30: 1049.46 | D30: 78.74506357 | E30: 47.89701979 | F30: 3 | G30: 10.50501056 | H30: 6.097657273 | I30: 626.26 | J30: 27.76114539 | K30: 6.098476405 | L30: 37.73430254
A31: 615_45 | B31: 10030 | C31: 1026.29 | D31: 80.29605118 | E31: 35.95185032 | F31: 3 | G31: 10.25461343 | H31: 6.441328834 | I31: 641.26 | J31: 24.31464592 | K31: 15.1685658 | L31: 17.08894025
A32: 614_45 | B32: 10031 | C32: 975.86 | D32: 89.56508463 | E32: 6.6245198 | F32: 3 | G32: 1.620422687 | H32: 3.65460599 | I32: 641.26 | J32: 0 | K32: 25.59925655 | L32: 0
A33: 632_46 | B33: 10032 | C33: 1010.75 | D33: 94.20678639 | E33: 4.241018646 | F33: 1 | G33: 17.50479041 | H33: 2.537360701 | I33: 602.92 | J33: 0 | K33: 1.466393479 | L33: 3.207039809
A34: 631_46 | B34: 10033 | C34: 1012.95 | D34: 87.19349272 | E34: 16.51455791 | F34: 1 | G34: 5.310131992 | H34: 3.135944295 | I34: 602.59 | J34: 40.46896245 | K34: 7.615983203 | L34: 16.31507544
A35: 630_46 | B35: 10034 | C35: 991.98 | D35: 64.47194697 | E35: 53.43104159 | F35: 1 | G35: 7.032099755 | H35: 5.934376171 | I35: 602.59 | J35: 39.33084952 | K35: 4.233700127 | L35: 50.93319786
A36: 629_46 | B36: 10035 | C36: 961.3 | D36: 38.77230045 | E36: 80.20932459 | F36: 1 | G36: 9.454351617 | H36: 9.073810524 | I36: 606.85 | J36: 36.57052 | K36: 1.712676492 | L36: 80.15600309
A37: 628_46 | B37: 10036 | C37: 953.14 | D37: 20.58066879 | E37: 72.00665125 | F37: 1 | G37: 11.55433581 | H37: 11.88626132 | I37: 606.85 | J37: 64.89436105 | K37: 4.672577931 | L37: 70.03220116
A38: 627_46 | B38: 10037 | C38: 959.59 | D38: 16.18952892 | E38: 80.91001194 | F38: 1 | G38: 8.089180144 | H38: 10.80114146 | I38: 609.21 | J38: 28.97426822 | K38: 1.543737156 | L38: 84.4074166
A39: 626_46 | B39: 10038 | C39: 1001.82 | D39: 37.80942608 | E39: 75.55878079 | F39: 1 | G39: 7.50628572 | H39: 8.974235864 | I39: 609.21 | J39: 2.59819364 | K39: 2.532566798 | L39: 76.28735453
A40: 625_46 | B40: 10039 | C40: 1082.24 | D40: 90.2835523 | E40: 47.24816108 | F40: 3 | G40: 5.093599946 | H40: 4.122768638 | I40: 607.85 | J40: 2.725941078 | K40: 2.293400069 | L40: 47.55299955
A41: 624_46 | B41: 10040 | C41: 1121.61 | D41: 92.75090078 | E41: 62.06253653 | F41: 3 | G41: 7.557699864 | H41: 3.461756635 | I41: 607.85 | J41: 0.156411926 | K41: 4.00440016 | L41: 63.22559994
A42: 623_46 | B42: 10041 | C42: 1134.65 | D42: 92.09956301 | E42: 24.10798553 | F42: 3 | G42: 4.828200208 | H42: 2.715003693 | I42: 603.51 | J42: 0 | K42: 5.755299942 | L42: 25.89870071
A43: 622_46 | B43: 10042 | C43: 1147.86 | D43: 85.93541561 | E43: 52.16733802 | F43: 3 | G43: 6.81280028 | H43: 3.82697037 | I43: 603.51 | J43: 3.865172159 | K43: 3.1892 | L43: 53.78260087
A44: 621_46 | B44: 10043 | C44: 1092.78 | D44: 80.04637822 | E44: 74.55329323 | F44: 3 | G44: 8.482499775 | H44: 4.682882641 | I44: 601.23 | J44: 3.755321565 | K44: 1.819700055 | L44: 77.55099992
A45: 620_46 | B45: 10044 | C45: 1035.87 | D45: 85.1295751 | E45: 64.20431115 | F45: 3 | G45: 12.57866409 | H45: 4.03233672 | I45: 601.23 | J45: 3.706431697 | K45: 3.649943626 | L45: 64.03886073
A46: 619_46 | B46: 10045 | C46: 1021.09 | D46: 76.97285372 | E46: 53.98671996 | F46: 3 | G46: 9.43941728 | H46: 5.26414772 | I46: 601.62 | J46: 0.08960447105 | K46: 8.13839172 | L46: 53.77553774
A47: 618_46 | B47: 10046 | C47: 1039.64 | D47: 89.62353159 | E47: 75.63052515 | F47: 3 | G47: 6.8506002 | H47: 4.150703525 | I47: 601.62 | J47: 30.76997797 | K47: 2.854100114 | L47: 76.68330042
A48: 617_46 | B48: 10047 | C48: 1052.97 | D48: 85.34669656 | E48: 78.43883513 | F48: 3 | G48: 6.677500036 | H48: 5.476740789 | I48: 611.01 | J48: 30.81529116 | K48: 2.152600086 | L48: 77.39310001
A49: 616_46 | B49: 10048 | C49: 1044.43 | D49: 82.71924649 | E49: 61.11531312 | F49: 3 | G49: 16.3426002 | H49: 6.454384198 | I49: 611.01 | J49: 40.65318115 | K49: 3.144599969 | L49: 56.87290024
A50: 615_46 | B50: 10049 | C50: 1038.92 | D50: 92.4776486 | E50: 52.67400878 | F50: 3 | G50: 23.13069437 | H50: 6.054155377 | I50: 635.1 | J50: 67.50616635 | K50: 3.028724296 | L50: 53.97670617
A51: 614_46 | B51: 10050 | C51: 995.57 | D51: 94.59860317 | E51: 20.19244199 | F51: 3 | G51: 40.51427747 | H51: 4.907944502 | I51: 635.1 | J51: 68.59656767 | K51: 15.07105968 | L51: 11.59474842
A52: 613_46 | B52: 10051 | C52: 968.47 | D52: 95.19907867 | E52: 7.947535289 | F52: 3 | G52: 4.863972839 | H52: 3.131268217 | I52: 657.08 | J52: 0 | K52: 32.21958643 | L52: 2.033173136
A53: 611_46 | B53: 10052 | C53: 982.96 | D53: 89.70522524 | E53: 19.21552876 | F53: 3 | G53: 2.285025208 | H53: 1.448031524 | I53: 659.81 | J53: 0 | K53: 23.8557651 | L53: 0.02829983664
A54: 610_46 | B54: 10053 | C54: 974.97 | D54: 97.95582101 | E54: 11.45321205 | F54: 3 | G54: 1.262982254 | H54: 1.531244033 | I54: 659.81 | J54: 0 | K54: 23.43835181 | L54: 6.659075221
A55: 632_47 | B55: 10054 | C55: 992.43 | D55: 89.217702 | E55: 17.43812544 | F55: 1 | G55: 4.807180712 | H55: 2.236278151 | I55: 602.92 | J55: 0.08792100703 | K55: 12.51278749 | L55: 15.82449852
A56: 631_47 | B56: 10055 | C56: 1002.07 | D56: 35.1400195 | E56: 63.00430847 | F56: 1 | G56: 10.20957041 | H56: 8.719874986 | I56: 602.59 | J56: 40.04772705 | K56: 1.584130602 | L56: 64.0392446
A57: 630_47 | B57: 10056 | C57: 988.45 | D57: 18.46743928 | E57: 78.98952622 | F57: 1 | G57: 11.69586457 | H57: 12.47845422 | I57: 602.59 | J57: 55.32894346 | K57: 1.918961111 | L57: 80.09675082
A58: 629_47 | B58: 10057 | C58: 962.07 | D58: 36.53486287 | E58: 75.66531191 | F58: 1 | G58: 8.266334688 | H58: 10.27505784 | I58: 606.85 | J58: 73.84081297 | K58: 7.583092215 | L58: 71.85110837
A59: 628_47 | B59: 10058 | C59: 957.78 | D59: 25.20124903 | E59: 80.90306005 | F59: 1 | G59: 7.09538339 | H59: 10.39355958 | I59: 606.85 | J59: 65.088925 | K59: 20.85788989 | L59: 74.31804341
A60: 627_47 | B60: 10059 | C60: 958.53 | D60: 35.39547176 | E60: 69.85464327 | F60: 1 | G60: 13.99024054 | H60: 9.109918504 | I60: 609.21 | J60: 42.70453925 | K60: 5.062751196 | L60: 68.26671244
A61: 626_47 | B61: 10060 | C61: 995.26 | D61: 47.46597949 | E61: 55.1554668 | F61: 1 | G61: 19.98876967 | H61: 6.976142407 | I61: 609.21 | J61: 84.05741603 | K61: 4.577041999 | L61: 58.39229846
A62: 625_47 | B62: 10061 | C62: 1095.76 | D62: 14.1981647 | E62: 77.94463627 | F62: 1 | G62: 12.54144264 | H62: 11.36728444 | I62: 607.85 | J62: 3.580867551 | K62: 1.311054448 | L62: 79.79248217
A63: 624_47 | B63: 10062 | C63: 1137.76 | D63: 77.9644553 | E63: 40.83240125 | F63: 3 | G63: 25.31920035 | H63: 5.086604018 | I63: 607.85 | J63: 1.493672958 | K63: 2.940400088 | L63: 45.33669906
A64: 623_47 | B64: 10063 | C64: 1130.63 | D64: 77.52387618 | E64: 53.90182242 | F64: 3 | G64: 7.205299885 | H64: 4.087991611 | I64: 603.51 | J64: 0.2510487402 | K64: 8.209399836 | L64: 55.16079898
A65: 622_47 | B65: 10064 | C65: 1132.32 | D65: 76.02776356 | E65: 67.81559892 | F65: 3 | G65: 7.367800036 | H65: 5.075124025 | I65: 603.51 | J65: 0.2112096748 | K65: 4.848799952 | L65: 68.05470153
A66: 621_47 | B66: 10065 | C66: 1094.12 | D66: 80.2019719 | E66: 75.4545289 | F66: 3 | G66: 10.72030014 | H66: 5.371726216 | I66: 601.23 | J66: 3.803531236 | K66: 1.785500036 | L66: 78.36039978
A67: 620_47 | B67: 10066 | C67: 1052.56 | D67: 76.29295903 | E67: 79.38839086 | F67: 3 | G67: 9.073600384 | H67: 5.315119046 | I67: 601.23 | J67: 3.753260123 | K67: 1.890700057 | L67: 80.98800036
A68: 619_47 | B68: 10067 | C68: 1041.91 | D68: 90.55227885 | E68: 56.15300027 | F68: 3 | G68: 7.058500919 | H68: 3.305085915 | I68: 601.62 | J68: 0 | K68: 6.629799867 | L68: 53.46570252
A69: 618_47 | B69: 10068 | C69: 1032.48 | D69: 84.6297058 | E69: 75.50671478 | F69: 3 | G69: 8.557100029 | H69: 4.736775344 | I69: 601.62 | J69: 4.420338467 | K69: 1.527300046 | L69: 74.54319989
A70: 617_47 | B70: 10069 | C70: 1025.07 | D70: 87.15432447 | E70: 71.62678111 | F70: 3 | G70: 7.791000143 | H70: 6.298360121 | I70: 611.01 | J70: 77.38311284 | K70: 3.822400115 | L70: 72.92659996
A71: 616_47 | B71: 10070 | C71: 1031.91 | D71: 82.79828394 | E71: 67.29586888 | F71: 3 | G71: 7.204799766 | H71: 5.279662992 | I71: 611.01 | J71: 9.353270072 | K71: 4.795399904 | L71: 66.52829995
A72: 615_47 | B72: 10071 | C72: 1035.23 | D72: 82.99638035 | E72: 75.31974291 | F72: 3 | G72: 9.730000046 | H72: 6.832130165 | I72: 635.1 | J72: 68.60034801 | K72: 4.156700125 | L72: 74.36579968
A73: 614_47 | B73: 10072 | C73: 1021.76 | D73: 73.05096929 | E73: 71.83585252 | F73: 3 | G73: 11.72368436 | H73: 9.890624762 | I73: 635.1 | J73: 77.36508334 | K73: 1.730529116 | L73: 70.83701553
A74: 613_47 | B74: 10073 | C74: 1007.58 | D74: 5.967274305 | E74: 83.6221516 | F74: 3 | G74: 3.027287484 | H74: 28.70248765 | I74: 657.08 | J74: 82.56151602 | K74: 4.191591309 | L74: 69.05480369
A75: 612_47 | B75: 10074 | C75: 1001.6 | D75: 40.95508571 | E75: 71.13535704 | F75: 3 | G75: 4.839765015 | H75: 15.77494297 | I75: 657.08 | J75: 0.1468269349 | K75: 14.65388367 | L75: 50.00114278
A76: 611_47 | B76: 10075 | C76: 992.1 | D76: 52.21105462 | E76: 49.70248843 | F76: 3 | G76: 5.297476889 | H76: 11.66377349 | I76: 659.81 | J76: 0.08026816982 | K76: 27.12607383 | L76: 24.18018643
A77: 610_47 | B77: 10076 | C77: 986.6 | D77: 74.67573328 | E77: 53.9591281 | F77: 3 | G77: 12.51796748 | H77: 7.751812343 | I77: 659.81 | J77: 8.882343398 | K77: 10.80677746 | L77: 46.14490728
A78: 609_47 | B78: 10077 | C78: 969.56 | D78: 82.39705189 | E78: 76.54899279 | F78: 3 | G78: 6.024110424 | H78: 6.019923005 | I78: 653.64 | J78: 37.28808273 | K78: 6.437089119 | L78: 68.77926774
A79: 608_47 | B79: 10078 | C79: 978.31 | D79: 11.43099869 | E79: 63.22564801 | F79: 3 | G79: 3.000589641 | H79: 22.47683264 | I79: 653.64 | J79: 20.98536748 | K79: 15.52042539 | L79: 28.01201122
A80: 632_48 | B80: 10079 | C80: 972.11 | D80: 85.33337458 | E80: 53.86734706 | F80: 1 | G80: 6.653196321 | H80: 2.971299626 | I80: 603.24 | J80: 2.043596107 | K80: 8.571241764 | L80: 52.86039707
A81: 631_48 | B81: 10080 | C81: 980.43 | D81: 26.4142138 | E81: 72.5985319 | F81: 1 | G81: 17.07875646 | H81: 9.866096215 | I81: 602.48 | J81: 2.751039224 | K81: 0.9975833434 | L81: 73.72867256
A82: 630_48 | B82: 10081 | C82: 958.51 | D82: 10.14015129 | E82: 81.71629648 | F82: 1 | G82: 8.900412171 | H82: 13.94750527 | I82: 602.48 | J82: 15.47919455 | K82: 3.22382762 | L82: 81.58438009
A83: 629_48 | B83: 10082 | C83: 952.15 | D83: 18.19306686 | E83: 77.87035417 | F83: 1 | G83: 11.59619291 | H83: 10.56619026 | I83: 603.44 | J83: 55.8993353 | K83: 1.356315992 | L83: 78.9610578
A84: 628_48 | B84: 10083 | C84: 952.88 | D84: 55.03787937 | E84: 74.77449357 | F84: 1 | G84: 9.189200763 | H84: 7.938706482 | I84: 603.44 | J84: 82.34904632 | K84: 5.49896155 | L84: 73.03834951
A85: 627_48 | B85: 10084 | C85: 960.87 | D85: 50.09483041 | E85: 70.11665699 | F85: 1 | G85: 12.35142232 | H85: 6.897595556 | I85: 603.63 | J85: 81.7896326 | K85: 5.146917073 | L85: 69.65302564
A86: 626_48 | B86: 10085 | C86: 985.47 | D86: 64.41445542 | E86: 58.46241982 | F86: 1 | G86: 9.628515308 | H86: 5.676567833 | I86: 603.63 | J86: 2.089589667 | K86: 7.719334472 | L86: 56.09885672
A87: 625_48 | B87: 10086 | C87: 1059.93 | D87: 52.41887118 | E87: 73.8002904 | F87: 1 | G87: 11.71658792 | H87: 6.690270529 | I87: 606.41 | J87: 1.737360645 | K87: 2.828358871 | L87: 74.037855
A88: 624_48 | B88: 10087 | C88: 1096.33 | D88: 81.91640283 | E88: 67.67025053 | F88: 3 | G88: 9.815500154 | H88: 4.554786528 | I88: 606.41 | J88: 1.866456758 | K88: 2.485299901 | L88: 71.64909981
A89: 623_48 | B89: 10088 | C89: 1092.17 | D89: 83.91794638 | E89: 73.92519564 | F89: 3 | G89: 10.13169966 | H89: 3.924465774 | I89: 599.46 | J89: 0.0919740663 | K89: 3.746099663 | L89: 75.88199916
A90: 622_48 | B90: 10089 | C90: 1095.95 | D90: 86.23458505 | E90: 69.55054822 | F90: 3 | G90: 10.52229957 | H90: 4.262674956 | I90: 599.46 | J90: 0.08045023363 | K90: 2.460399803 | L90: 71.32709874
A91: 621_48 | B91: 10090 | C91: 1076.17 | D91: 84.06970671 | E91: 71.4184994 | F91: 3 | G91: 8.417700162 | H91: 4.270015981 | I91: 594.31 | J91: 5.785727847 | K91: 1.376099931 | L91: 74.41449967
A92: 620_48 | B92: 10091 | C92: 1054.27 | D92: 79.95676624 | E92: 65.39143348 | F92: 3 | G92: 7.723999865 | H92: 4.570733552 | I92: 594.31 | J92: 5.79705741 | K92: 2.99059988 | L92: 69.00990052
A93: 619_48 | B93: 10092 | C93: 1040.07 | D93: 90.40182663 | E93: 42.90879917 | F93: 3 | G93: 6.580400004 | H93: 2.93134856 | I93: 597.09 | J93: 0 | K93: 11.59089896 | L93: 43.63839927
A94: 618_48 | B94: 10093 | C94: 1031.87 | D94: 86.67416565 | E94: 57.44915698 | F94: 3 | G94: 5.693499865 | H94: 3.882848456 | I94: 597.09 | J94: 4.408844199 | K94: 4.798399808 | L94: 58.68960124
A95: 617_48 | B95: 10094 | C95: 1022.19 | D95: 86.68118154 | E95: 63.10527482 | F95: 3 | G95: 7.968800037 | H95: 4.484264273 | I95: 606.85 | J95: 5.096849416 | K95: 6.123799755 | L95: 64.7203006
A96: 616_48 | B96: 10095 | C96: 1033.58 | D96: 87.75618096 | E96: 71.1265301 | F96: 3 | G96: 7.891100057 | H96: 4.968638499 | I96: 606.85 | J96: 5.075747148 | K96: 4.039499636 | L96: 71.12189953
A97: 615_48 | B97: 10096 | C97: 1034.86 | D97: 84.61898565 | E97: 76.50301578 | F97: 3 | G97: 9.036999927 | H97: 5.637019244 | I97: 618.07 | J97: 8.198649314 | K97: 2.376099905 | L97: 77.71430028
A98: 614_48 | B98: 10097 | C98: 1022.79 | D98: 79.59211598 | E98: 74.05580413 | F98: 3 | G98: 12.72370018 | H98: 5.804586058 | I98: 618.07 | J98: 4.229857504 | K98: 1.467699868 | L98: 76.70629945
A99: 613_48 | B99: 10098 | C99: 1017.74 | D99: 72.09144242 | E99: 74.4459007 | F99: 3 | G99: 12.37239968 | H99: 9.319318508 | I99: 630.66 | J99: 3.274659805 | K99: 2.197399912 | L99: 73.37930068
A100: 612_48 | B100: 10099 | C100: 1015.89 | D100: 84.61460238 | E100: 74.23616973 | F100: 3 | G100: 8.972499751 | H100: 4.377009583 | I100: 630.66 | J100: 0.6370009087 | K100: 1.069999904 | L100: 77.03760082
A101: 611_48 | B101: 10100 | C101: 1024.63 | D101: 44.65753654 | E101: 75.92617924 | F101: 3 | G101: 9.111265677 | H101: 8.033561772 | I101: 634.28 | J101: 0.4041629159 | K101: 3.541874282 | L101: 71.10973019
A102: 610_48 | B102: 10101 | C102: 1040.31 | D102: 60.32267056 | E102: 85.82386808 | F102: 3 | G102: 7.502099984 | H102: 9.794299756 | I102: 634.28 | J102: 1.15954004 | K102: 0.119399994 | L102: 81.72260008
A103: 609_48 | B103: 10102 | C103: 1025.03 | D103: 64.47167871 | E103: 79.51094076 | F103: 3 | G103: 7.637999995 | H103: 6.56019161 | I103: 623.38 | J103: 4.756508343 | K103: 4.233799831 | L103: 78.45330007
A104: 608_48 | B104: 10103 | C104: 1042.79 | D104: 13.14499344 | E104: 83.305158 | F104: 3 | G104: 5.90214883 | H104: 25.10683936 | I104: 623.38 | J104: 3.532760048 | K104: 3.095548427 | L104: 74.77346991
A105: 633_49 | B105: 10104 | C105: 963.47 | D105: 98.22079758 | E105: 6.191167485 | F105: 1 | G105: 5.222782803 | H105: 1.696070429 | I105: 603.24 | J105: 0 | K105: 6.163399196 | L105: 5.81508145
A106: 632_49 | B106: 10105 | C106: 939.5 | D106: 95.06581984 | E106: 32.45884633 | F106: 1 | G106: 6.052903712 | H106: 2.425783054 | I106: 603.24 | J106: 1.251399751 | K106: 12.29800469 | L106: 26.7234891
A107: 631_49 | B107: 10106 | C107: 937.34 | D107: 52.65906208 | E107: 56.91002336 | F107: 1 | G107: 7.146734156 | H107: 7.752919842 | I107: 602.48 | J107: 3.501997055 | K107: 15.01950181 | L107: 43.57583139
A108: 630_49 | B108: 10107 | C108: 947.7 | D108: 10.13102223 | E108: 80.20636109 | F108: 1 | G108: 9.889911539 | H108: 11.67834709 | I108: 602.48 | J108: 8.597715482 | K108: 2.765692336 | L108: 75.43359311
A109: 629_49 | B109: 10108 | C109: 936.71 | D109: 39.38681229 | E109: 56.36431312 | F109: 1 | G109: 20.60260393 | H109: 7.960761804 | I109: 603.44 | J109: 72.57501976 | K109: 10.37050612 | L109: 53.68787976
A110: 628_49 | B110: 10109 | C110: 933.3 | D110: 51.01911757 | E110: 71.93898124 | F110: 1 | G110: 11.38091143 | H110: 7.471725366 | I110: 603.44 | J110: 87.46234176 | K110: 4.29664237 | L110: 73.32613641
A111: 627_49 | B111: 10110 | C111: 952.59 | D111: 21.68897749 | E111: 82.52525274 | F111: 1 | G111: 9.606799889 | H111: 9.671585637 | I111: 603.63 | J111: 78.33648315 | K111: 1.603699984 | L111: 82.75130024
A112: 626_49 | B112: 10111 | C112: 971.68 | D112: 72.45284527 | E112: 49.67336496 | F112: 1 | G112: 7.315800023 | H112: 4.799296922 | I112: 603.63 | J112: 5.18191341 | K112: 10.58830032 | L112: 47.84069906
A113: 625_49 | B113: 10112 | C113: 999.87 | D113: 82.73271699 | E113: 67.39748171 | F113: 1 | G113: 7.882199999 | H113: 4.477825499 | I113: 606.41 | J113: 0.7129485723 | K113: 5.859200117 | L113: 69.2504001
A114: 624_49 | B114: 10113 | C114: 1025.61 | D114: 93.67041635 | E114: 47.89966323 | F114: 3 | G114: 7.533900071 | H114: 3.24538853 | I114: 606.41 | J114: 0 | K114: 3.798200114 | L114: 49.35040022
A115: 623_49 | B115: 10114 | C115: 1044.35 | D115: 89.00859724 | E115: 63.1224435 | F115: 3 | G115: 6.537100013 | H115: 2.947428421 | I115: 599.46 | J115: 0.0505592811 | K115: 3.454899931 | L115: 63.41009934
A116: 622_49 | B116: 10115 | C116: 1087.24 | D116: 66.72480865 | E116: 52.16910905 | F116: 3 | G116: 24.02080038 | H116: 4.595476798 | I116: 599.46 | J116: 2.155098289 | K116: 3.631799964 | L116: 54.20379915
A117: 621_49 | B117: 10116 | C117: 1063.54 | D117: 77.81055484 | E117: 45.09094335 | F117: 3 | G117: 13.18319961 | H117: 4.816146378 | I117: 594.31 | J117: 2.277979115 | K117: 4.063400081 | L117: 47.29849944
A118: 620_49 | B118: 10117 | C118: 1040.54 | D118: 88.33047844 | E118: 52.90700156 | F118: 3 | G118: 7.72509979 | H118: 3.705804637 | I118: 594.31 | J118: 2.152092501 | K118: 6.31890019 | L118: 53.64580059
A119: 619_49 | B119: 10118 | C119: 1034.77 | D119: 84.89710653 | E119: 57.98682927 | F119: 3 | G119: 6.056200054 | H119: 3.001763655 | I119: 597.09 | J119: 0.04276051169 | K119: 5.202699896 | L119: 60.39890004
A120: 618_49 | B120: 10119 | C120: 1041.17 | D120: 92.77918402 | E120: 57.84125695 | F120: 3 | G120: 8.565400247 | H120: 3.111966813 | I120: 597.09 | J120: 0.04288244811 | K120: 3.242200097 | L120: 60.58709992
A121: 617_49 | B121: 10120 | C121: 1045.96 | D121: 88.5583212 | E121: 60.07094153 | F121: 3 | G121: 13.18179993 | H121: 3.85358092 | I121: 606.85 | J121: 0.1462044948 | K121: 3.66430011 | L121: 63.5529999
A122: 616_49 | B122: 10121 | C122: 1041.69 | D122: 91.25101374 | E122: 46.38252155 | F122: 3 | G122: 5.585900038 | H122: 3.430107815 | I122: 606.85 | J122: 0.02220172609 | K122: 6.052399879 | L122: 46.19549993
A123: 615_49 | B123: 10122 | C123: 1039.04 | D123: 87.14306891 | E123: 61.07212962 | F123: 3 | G123: 8.807400065 | H123: 4.898929243 | I123: 618.07 | J123: 4.26153205 | K123: 2.884300087 | L123: 62.11790021
A124: 614_49 | B124: 10123 | C124: 1031.77 | D124: 60.3460626 | E124: 80.0533041 | F124: 3 | G124: 9.399000118 | H124: 5.662851415 | I124: 618.07 | J124: 13.70838397 | K124: 1.625099967 | L124: 80.22320011
A125: 613_49 | B125: 10124 | C125: 1022.41 | D125: 77.07622353 | E125: 80.99220882 | F125: 3 | G125: 6.766599933 | H125: 5.518451426 | I125: 630.66 | J125: 8.232509896 | K125: 1.572800047 | L125: 80.90599942
A126: 612_49 | B126: 10125 | C126: 1018.87 | D126: 84.18904633 | E126: 61.70202377 | F126: 3 | G126: 6.41309992 | H126: 4.004419367 | I126: 630.66 | J126: 29.56803139 | K126: 3.689699926 | L126: 60.93640106
A127: 611_49 | B127: 10126 | C127: 1035.26 | D127: 44.67951076 | E127: 64.32423784 | F127: 3 | G127: 6.81860004 | H127: 4.01711089 | I127: 634.28 | J127: 1.271956489 | K127: 5.066700152 | L127: 63.44419885
A128: 610_49 | B128: 10127 | C128: 1054.67 | D128: 79.84746951 | E128: 73.38029144 | F128: 3 | G128: 8.173800098 | H128: 4.809815132 | I128: 634.28 | J128: 1.777953957 | K128: 1.732900035 | L128: 70.76760002
A129: 609_49 | B129: 10128 | C129: 1062.59 | D129: 71.13709565 | E129: 75.51230663 | F129: 3 | G129: 6.038399875 | H129: 5.103234508 | I129: 623.38 | J129: 2.825630973 | K129: 5.804500174 | L129: 75.05410007
A130: 608_49 | B130: 10129 | C130: 1072.07 | D130: 65.01752527 | E130: 70.72472425 | F130: 3 | G130: 14.59966757 | H130: 12.50316602 | I130: 623.38 | J130: 3.297666904 | K130: 1.919167299 | L130: 68.14564476
A131: 633_50 | B131: 10130 | C131: 938.89 | D131: 96.47792786 | E131: 18.99316341 | F131: 1 | G131: 5.740357229 | H131: 2.546329991 | I131: 609.48 | J131: 0 | K131: 10.40276943 | L131: 16.09858099
A132: 632_50 | B132: 10131 | C132: 884.02 | D132: 93.61596792 | E132: 61.99050642 | F132: 1 | G132: 5.526592093 | H132: 2.823565165 | I132: 609.48 | J132: 1.051777716 | K132: 13.56704866 | L132: 51.88479942
A133: 631_50 | B133: 10132 | C133: 883.23 | D133: 100.4818494 | E133: 61.97596056 | F133: 1 | G133: 4.897846161 | H133: 1.875238886 | I133: 607.16 | J133: 0 | K133: 63.11804517 | L133: 6.699256899
A134: 630_50 | B134: 10133 | C134: 901.74 | D134: 78.45300617 | E134: 39.70049448 | F134: 1 | G134: 9.895664153 | H134: 4.896280592 | I134: 607.16 | J134: 64.95667338 | K134: 35.30502404 | L134: 23.82826102
A135: 629_50 | B135: 10134 | C135: 895.28 | D135: 31.04609083 | E135: 71.10623283 | F135: 1 | G135: 10.88636029 | H135: 9.44459974 | I135: 601.97 | J135: 85.65391203 | K135: 7.532976447 | L135: 68.33552728
A136: 628_50 | B136: 10135 | C136: 902.43 | D136: 30.12329125 | E136: 79.0291926 | F136: 1 | G136: 8.959506697 | H136: 8.370415812 | I136: 601.97 | J136: 72.15480323 | K136: 2.387997009 | L136: 78.35695541
A137: 627_50 | B137: 10136 | C137: 938.33 | D137: 53.55199508 | E137: 67.97845818 | F137: 1 | G137: 15.3183233 | H137: 6.608073637 | I137: 597.9 | J137: 54.58128932 | K137: 3.18503213 | L137: 66.21686226
A138: 626_50 | B138: 10137 | C138: 947.8 | D138: 75.47850896 | E138: 56.42710483 | F138: 1 | G138: 18.94722511 | H138: 5.230344474 | I138: 597.9 | J138: 3.523834149 | K138: 3.731893784 | L138: 58.16951888
A139: 625_50 | B139: 10138 | C139: 963.58 | D139: 85.94746137 | E139: 69.62343048 | F139: 1 | G139: 8.560599923 | H139: 4.494009662 | I139: 597.94 | J139: 0.3433885251 | K139: 8.32060025 | L139: 71.12140023
A140: 624_50 | B140: 10139 | C140: 970.8 | D140: 94.6861409 | E140: 46.78577435 | F140: 3 | G140: 5.847799792 | H140: 2.944203209 | I140: 597.94 | J140: 0 | K140: 14.83350059 | L140: 48.5017004
A141: 623_50 | B141: 10140 | C141: 983 | D141: 95.98428491 | E141: 51.93895038 | F141: 3 | G141: 8.89740008 | H141: 3.022418384 | I141: 592.73 | J141: 0 | K141: 2.276099977 | L141: 53.27029927
A142: 622_50 | B142: 10141 | C142: 1020.98 | D142: 82.76979226 | E142: 58.36571454 | F142: 3 | G142: 20.69660051 | H142: 4.23785682 | I142: 592.73 | J142: 0.4676136563 | K142: 2.3908 | L142: 60.22939979
A143: 621_50 | B143: 10142 | C143: 1026.43 | D143: 87.25479174 | E143: 59.01638433 | F143: 3 | G143: 10.19989927 | H143: 3.44077902 | I143: 586.8 | J143: 0.6160715031 | K143: 5.33830016 | L143: 61.03169995
A144: 620_50 | B144: 10143 | C144: 1024.33 | D144: 92.07980035 | E144: 41.93813019 | F144: 3 | G144: 11.35010024 | H144: 3.291379999 | I144: 586.8 | J144: 0.01681287238 | K144: 4.74540019 | L144: 42.54789979
A145: 619_50 | B145: 10144 | C145: 1021.17 | D145: 78.49874799 | E145: 62.10885178 | F145: 3 | G145: 10.16859989 | H145: 3.902515683 | I145: 597.42 | J145: 0.07807010187 | K145: 5.080999949 | L145: 63.68139972
A146: 618_50 | B146: 10145 | C146: 1045.56 | D146: 89.4029425 | E146: 65.58802156 | F146: 3 | G146: 7.62969989 | H146: 3.743101044 | I146: 597.42 | J146: 0.08810374082 | K146: 4.575400183 | L146: 67.83140046
A147: 617_50 | B147: 10146 | C147: 1072.23 | D147: 92.92865588 | E147: 56.02157434 | F147: 3 | G147: 14.68680029 | H147: 3.352445004 | I147: 609.48 | J147: 0.1469462561 | K147: 3.484800139 | L147: 58.25410031
A148: 616_50 | B148: 10147 | C148: 1046.1 | D148: 89.73844367 | E148: 38.41868188 | F148: 3 | G148: 6.820699935 | H148: 3.25458098 | I148: 609.48 | J148: 0.01786153241 | K148: 6.278299937 | L148: 41.59640103
A149: 615_50 | B149: 10148 | C149: 1035.91 | D149: 80.34937227 | E149: 64.06707929 | F149: 3 | G149: 9.14360012 | H149: 4.554857215 | I149: 620.49 | J149: 4.318416468 | K149: 3.765300151 | L149: 65.44440035
A150: 614_50 | B150: 10149 | C150: 1039.04 | D150: 53.94395959 | E150: 63.16814729 | F150: 3 | G150: 18.71409945 | H150: 6.712780741 | I150: 620.49 | J150: 13.74382099 | K150: 1.176399988 | L150: 66.26520085
A151: 613_50 | B151: 10150 | C151: 1002.9 | D151: 33.1825288 | E151: 74.64886546 | F151: 3 | G151: 8.754000124 | H151: 8.561863809 | I151: 619.47 | J151: 27.29735532 | K151: 0.99970004 | L151: 76.8920994
A152: 612_50 | B152: 10151 | C152: 1000.77 | D152: 69.80002787 | E152: 74.62934226 | F152: 3 | G152: 8.727799943 | H152: 6.461629843 | I152: 619.47 | J152: 29.11296427 | K152: 1.482299985 | L152: 76.49650064
A153: 611_50 | B153: 10152 | C153: 1020.21 | D153: 66.90110529 | E153: 79.6755989 | F153: 3 | G153: 8.89020026 | H153: 5.001868975 | I153: 614.53 | J153: 2.115300992 | K153: 0.5806000232 | L153: 81.19669967
A154: 610_50 | B154: 10153 | C154: 1041.22 | D154: 68.0673479 | E154: 83.22553882 | F154: 3 | G154: 7.712099954 | H154: 5.389656412 | I154: 614.53 | J154: 2.572110379 | K154: 0.6934000208 | L154: 84.14559996
A155: 609_50 | B155: 10154 | C155: 1060.5 | D155: 89.81748627 | E155: 82.31471802 | F155: 3 | G155: 6.594500028 | H155: 4.433112222 | I155: 613.47 | J155: 0.8786867192 | K155: 1.49920006 | L155: 81.54910001
A156: 608_50 | B156: 10155 | C156: 1071.86 | D156: 90.04438962 | E156: 77.56449721 | F156: 3 | G156: 7.451352913 | H156: 4.153220109 | I156: 613.47 | J156: 0.8848240053 | K156: 1.331901908 | L156: 76.18226763
A157: 633_51 | B157: 10156 | C157: 867.57 | D157: 97.77358785 | E157: 18.52575521 | F157: 2 | G157: 5.158544369 | H157: 1.957028773 | I157: 609.48 | J157: 0 | K157: 15.57260376 | L157: 17.57847867
A158: 632_51 | B158: 10157 | C158: 817.06 | D158: 90.75758203 | E158: 72.7686581 | F158: 2 | G158: 10.56881533 | H158: 3.133526175 | I158: 609.48 | J158: 2.362021243 | K158: 2.835645629 | L158: 73.25426022
A159: 631_51 | B159: 10158 | C159: 810.54 | D159: 76.41363686 | E159: 68.87715443 | F159: 2 | G159: 13.52148028 | H159: 4.443394452 | I159: 607.16 | J159: 3.653980544 | K159: 4.356855893 | L159: 64.66048556
A160: 630_51 | B160: 10159 | C160: 871.47 | D160: 76.04501779 | E160: 73.2136401 | F160: 4 | G160: 10.07157624 | H160: 4.512234085 | I160: 607.16 | J160: 11.12903053 | K160: 1.637959406 | L160: 68.91826175
A161: 629_51 | B161: 10160 | C161: 882.87 | D161: 78.01626503 | E161: 60.81164212 | F161: 4 | G161: 8.867626737 | H161: 4.077595633 | I161: 601.97 | J161: 3.416973161 | K161: 3.394642376 | L161: 57.09132438
A162: 628_51 | B162: 10161 | C162: 890.04 | D162: 75.21135352 | E162: 66.01183744 | F162: 4 | G162: 11.81083131 | H162: 3.812180098 | I162: 601.97 | J162: 49.40087892 | K162: 5.338692169 | L162: 61.72986259
A163: 627_51 | B163: 10162 | C163: 914.13 | D163: 87.38443477 | E163: 66.45419488 | F163: 4 | G163: 11.26270582 | H163: 4.001455442 | I163: 597.9 | J163: 1.645048852 | K163: 4.785275759 | L163: 65.51486269
A164: 626_51 | B164: 10163 | C164: 923.66 | D164: 88.94014138 | E164: 62.13575307 | F164: 4 | G164: 7.551635941 | H164: 4.24012897 | I164: 597.9 | J164: 0.1098211209 | K164: 4.558827715 | L164: 61.02139357
A165: 625_51 | B165: 10164 | C165: 937.67 | D165: 91.61907765 | E165: 49.44051765 | F165: 1 | G165: 8.562799993 | H165: 4.223278607 | I165: 597.94 | J165: 0.3601788571 | K165: 3.105900062 | L165: 51.4401997
A166: 624_51 | B166: 10165 | C166: 943.22 | D166: 98.63905291 | E166: 56.00587934 | F166: 3 | G166: 9.808200009 | H166: 4.840936425 | I166: 597.94 | J166: 27.73990704 | K166: 11.70430035 | L166: 59.0509003
A167: 623_51 | B167: 10166 | C167: 955.15 | D167: 94.83718046 | E167: 37.04252874 | F167: 3 | G167: 5.914899706 | H167: 3.208443196 | I167: 592.73 | J167: 27.48190236 | K167: 3.569999929 | L167: 38.68779981
A168: 622_51 | B168: 10167 | C168: 977.78 | D168: 86.00776752 | E168: 58.35694693 | F168: 3 | G168: 13.46380042 | H168: 3.798672404 | I168: 592.73 | J168: 0.5825404518 | K168: 2.825499972 | L168: 61.46959992
A169: 621_51 | B169: 10168 | C169: 1006.08 | D169: 87.24183768 | E169: 46.76274626 | F169: 3 | G169: 7.412199892 | H169: 3.625598431 | I169: 586.8 | J169: 0.5682400995 | K169: 3.627600073 | L169: 47.78260036
A170: 620_51 | B170: 10169 | C170: 1015.77 | D170: 96.33158806 | E170: 53.01125546 | F170: 3 | G170: 8.108199835 | H170: 3.55316459 | I170: 586.8 | J170: 0.1733365532 | K170: 2.230400067 | L170: 54.66769948
A171: 619_51 | B171: 10170 | C171: 1011.7 | D171: 89.13016201 | E171: 58.23399029 | F171: 6 | G171: 10.43940025 | H171: 4.211586529 | I171: 597.42 | J171: 0.2246819264 | K171: 2.334206377 | L171: 61.04810714
A172: 618_51 | B172: 10171 | C172: 1028.42 | D172: 85.70131084 | E172: 59.59980772 | F172: 6 | G172: 11.75809983 | H172: 4.544150555 | I172: 597.42 | J172: 10.48250663 | K172: 1.266600038 | L172: 61.98950147
A173: 617_51 | B173: 10172 | C173: 1059.95 | D173: 86.54216074 | E173: 48.12373272 | F173: 6 | G173: 11.3856001 | H173: 4.904481425 | I173: 609.48 | J173: 10.2508826 | K173: 2.477900074 | L173: 50.23839921
A174: 616_51 | B174: 10173 | C174: 1029.46 | D174: 79.02423999 | E174: 49.45352768 | F174: 6 | G174: 8.122999551 | H174: 4.663978528 | I174: 609.48 | J174: 10.37610847 | K174: 8.432399831 | L174: 48.01129948
A175: 615_51 | B175: 10174 | C175: 992.19 | D175: 45.94899626 | E175: 67.8611916 | F175: 6 | G175: 9.373899941 | H175: 7.386523905 | I175: 620.49 | J175: 10.50002056 | K175: 3.437800103 | L175: 69.36179959
A176: 614_51 | B176: 10175 | C176: 964.1 | D176: 60.64459473 | E176: 69.06943141 | F176: 6 | G176: 15.01560003 | H176: 7.757389789 | I176: 620.49 | J176: 10.29441078 | K176: 2.691399946 | L176: 69.89710003
A177: 613_51 | B177: 10176 | C177: 962.78 | D177: 30.75263026 | E177: 65.89790496 | F177: 6 | G177: 9.311700073 | H177: 9.138618797 | I177: 619.47 | J177: 24.44269468 | K177: 1.388300042 | L177: 67.50059988
A178: 612_51 | B178: 10177 | C178: 984.9 | D178: 73.77234646 | E178: 71.16601112 | F178: 3 | G178: 12.3242996 | H178: 6.248318078 | I178: 619.47 | J178: 26.37045628 | K178: 1.717699966 | L178: 72.17600007
A179: 611_51 | B179: 10178 | C179: 1011.26 | D179: 80.70470138 | E179: 72.83081025 | F179: 3 | G179: 8.344599927 | H179: 4.751923022 | I179: 614.53 | J179: 28.69388364 | K179: 3.691300111 | L179: 72.49099998
A180: 610_51 | B180: 10179 | C180: 1035.45 | D180: 77.53084334 | E180: 79.92934764 | F180: 3 | G180: 7.244799852 | H180: 5.124289514 | I180: 614.53 | J180: 3.443308142 | K180: 0.8701000174 | L180: 81.74150102
A181: 609_51 | B181: 10180 | C181: 1050.33 | D181: 87.77607133 | E181: 81.14627077 | F181: 3 | G181: 8.13979973 | H181: 5.603712575 | I181: 613.47 | J181: 1.47092273 | K181: 2.775500083 | L181: 82.76930045
A182: 608_51 | B182: 10181 | C182: 1064.22 | D182: 84.92221519 | E182: 71.36821932 | F182: 3 | G182: 8.831222773 | H182: 3.659259394 | I182: 613.47 | J182: 0 | K182: 5.425762422 | L182: 68.032293
A183: 607_51 | B183: 10182 | C183: 1067.15 | D183: 89.6406828 | E183: 60.64614706 | F183: 3 | G183: 5.730377986 | H183: 3.263424841 | I183: 614.01 | J183: 0 | K183: 6.824072932 | L183: 56.43214603
A184: 633_52 | B184: 10183 | C184: 849.93 | D184: 91.96804229 | E184: 31.81668791 | F184: 2 | G184: 9.090793831 | H184: 2.854616756 | I184: 622.83 | J184: 2.321574467 | K184: 15.15246381 | L184: 27.52131226
A185: 632_52 | B185: 10184 | C185: 816.89 | D185: 80.21902466 | E185: 64.77876002 | F185: 2 | G185: 8.779628237 | H185: 4.559267929 | I185: 622.83 | J185: 2.215658548 | K185: 2.702489824 | L185: 64.97589702
A186: 631_52 | B186: 10185 | C186: 832.82 | D186: 64.72194285 | E186: 78.71701682 | F186: 4 | G186: 7.324210856 | H186: 4.553175554 | I186: 608.69 | J186: 19.98067596 | K186: 6.714713835 | L186: 78.03843117
A187: 630_52 | B187: 10186 | C187: 884.95 | D187: 84.89187071 | E187: 61.23122439 | F187: 4 | G187: 7.634800016 | H187: 3.792913418 | I187: 608.69 | J187: 6.765769564 | K187: 10.4440999 | L187: 58.16750051
A188: 629_52 | B188: 10187 | C188: 875.9 | D188: 76.88924054 | E188: 77.46467081 | F188: 4 | G188: 11.02439995 | H188: 4.378548787 | I188: 600.35 | J188: 3.683659154 | K188: 1.980599921 | L188: 75.85549985
A189: 628_52 | B189: 10188 | C189: 876.92 | D189: 84.66799598 | E189: 76.72726517 | F189: 4 | G189: 9.082399996 | H189: 4.396678702 | I189: 600.35 | J189: 3.360655554 | K189: 2.447899976 | L189: 73.82339934
A190: 627_52 | B190: 10189 | C190: 894.27 | D190: 91.03774739 | E190: 66.04001064 | F190: 4 | G190: 8.384699908 | H190: 4.085293923 | I190: 591.31 | J190: 0.2411326283 | K190: 3.061499878 | L190: 66.13679982
A191: 626_52 | B191: 10190 | C191: 918.01 | D191: 87.33170996 | E191: 66.2166389 | F191: 4 | G191: 10.35521787 | H191: 4.372276163 | I191: 591.31 | J191: 27.50416438 | K191: 2.445521194 | L191: 66.92937996
A192: 625_52 | B192: 10191 | C192: 931.98 | D192: 82.80896369 | E192: 30.17684945 | F192: 4 | G192: 28.37509979 | H192: 5.266462677 | I192: 590.44 | J192: 27.75041072 | K192: 3.790899962 | L192: 32.40919994
A193: 624_52 | B193: 10192 | C193: 913.86 | D193: 64.79662974 | E193: 65.18809031 | F193: 6 | G193: 8.8579999 | H193: 7.151074083 | I193: 590.44 | J193: 27.47146969 | K193: 5.2867 | L193: 67.23459936
A194: 623_52 | B194: 10193 | C194: 912.5 | D194: 32.09379689 | E194: 65.27931059 | F194: 6 | G194: 12.4193004 | H194: 9.428669967 | I194: 593.85 | J194: 27.43857699 | K194: 4.155499792 | L194: 67.91319993
A195: 622_52 | B195: 10194 | C195: 942.51 | D195: 68.24412131 | E195: 37.2326492 | F195: 6 | G195: 11.92229977 | H195: 5.408049458 | I195: 593.85 | J195: 29.42302099 | K195: 6.190299752 | L195: 40.32960097
A196: 621_52 | B196: 10195 | C196: 994.2 | D196: 92.95416282 | E196: 23.1268499 | F196: 6 | G196: 6.505900089 | H196: 4.190695759 | I196: 593.35 | J196: 3.103284742 | K196: 5.304099947 | L196: 26.65059956
A197: 620_52 | B197: 10196 | C197: 990.22 | D197: 80.57750859 | E197: 44.04356114 | F197: 6 | G197: 8.999999928 | H197: 4.875509267 | I197: 593.35 | J197: 3.175844061 | K197: 3.4596 | L197: 47.52820117
A198: 619_52 | B198: 10197 | C198: 980.97 | D198: 76.15398378 | E198: 52.23816449 | F198: 6 | G198: 8.514699795 | H198: 4.793921961 | I198: 600.02 | J198: 3.75797256 | K198: 5.429769586 | L198: 56.24591423
A199: 618_52 | B199: 10198 | C199: 987.9 | D199: 47.45187775 | E199: 68.06176976 | F199: 6 | G199: 9.933300236 | H199: 8.039871219 | I199: 600.02 | J199: 10.6556064 | K199: 1.3698 | L199: 73.27279926
A200: 617_52 | B200: 10199 | C200: 1005.86 | D200: 34.69633782 | E200: 59.45010936 | F200: 6 | G200: 13.05670004 | H200: 9.817913264 | I200: 610.6 | J200: 10.16161809 | K200: 4.9909 | L200: 60.63270024
... 410 more rows

Sheet Rettelser
A1: Rettelser foretaget i regne arket
A3: Juni2018: indsat ny opdateret figur vandløbsoplande
A4: Juni 2018: Indsat 2 Gule Bjælker i række 31 E-I og L-O fortællende hvilke data der skal indtastes
A5: Juni 2018: Der kan nu indsættes en ekstra række i regnearket, se kolonne R nedenunder gennemstrømning
A7: Oktober 2018 | B7: Ligning 6.1 rettet
A9: August 2020 | B9: Indsat ligning for oxisk interface, M2, i kolonne AI
B10: Fosforfrigivelse beregnet efter M2 i kolonne AJ
B11: Antal år med fosforfrigivelse med oprindelig formel M1 beregnes for hvert grid i kolonne AK
B12: Antal år med fosforfrigivelse beregnet med ny formel M2 beregnes for hvert grid i kolonne AL
A13: Efterår 2022 | B13: Opdateret formler for BFI beregning kapitel 3.3 I vejledningen
A14: Efterår 2022 | B14: Opdateret BOKS 1 i kapitel 5.3 hvor PP beregnes. NY opdatert for BFI anvendes
A15: Efterår 2022 | B15: Formel for P tab med oxisk interface opdateret. Vejledningen kapitel 6.2
A16: Efterår 2022 | B16: Ny formel for P tab for søer indsat og nyt faneblad "Søer" inkluderet i regnearket
A17: Efterår 2022 | B17: Høst af biomasse før retablering af vådområde eller sø inkluderet i regnearket. Fanebladet "Biomassehøst" indsat
A18: Efterår 2022 | B18: Nyt faneblad "DMI" indsat. Ved indtastning af DMI gridnummer/gridnumre hentes nedbør, fordampning, ler_pct, sand_pct, dyrk_pct, befast_pct, georegion, automatisk ind
A19: Efterår 2022 | B19: BEMÆRK at Ler_procent og befæstet areal i procent kan indtastet i celle M28 og M29 hvis disse værdier afviger fra DMI griddets værdier
